{"text_format":"1","workbook":"xlsx","n_sheets":5,"sheets":["Form. Registros","Formulario RR.AA","Fortalezas y Oportunidades","Hoja de Resultados","Resultados "],"not_rendered":{"charts":0,"images":2,"macros":1,"external_links":0,"defined_names":4,"comments":0,"pivot_tables":0},"unopened":[],"bounds":{"document_bytes":16777216,"sheet_cells":100000,"rows_first":2000,"rows_last":500,"rows_between":2000,"halvings":0,"cell_chars":16384,"cell_head_chars":4096},"cells_cut":0,"cells_raw":0,"read":"whole","date_system":"1900"}

{"sheet":"Form. Registros","index":0,"n_rows":600,"n_cols":57,"rows_kept":600,"cut":false,"hidden":false,"merged":[[1,16,1,51],[2,16,2,49],[3,16,3,49],[4,1,4,52],[6,2,6,51],[8,1,8,52],[16,1,16,52],[22,1,22,52],[37,1,37,52],[10,10,10,38],[13,15,13,27],[11,12,11,29],[12,17,12,27],[32,20,32,25],[35,18,35,50],[19,12,19,29],[20,17,20,27],[24,18,24,51],[17,16,17,38],[18,35,18,47],[1,12,3,15],[51,54,56,91],[74,23,74,51],[140,4,140,17],[140,22,140,35],[141,4,141,17],[141,22,141,35],[139,4,139,19],[139,22,139,51],[239,54,246,82],[246,33,247,51],[172,54,172,91],[205,6,205,21],[205,29,205,44],[206,6,206,21],[206,29,206,44],[206,49,206,50],[142,4,142,17],[142,22,142,35],[144,54,146,81],[155,54,158,82],[166,54,170,89],[152,16,153,25],[165,15,166,24],[185,15,188,27],[303,54,305,91],[315,54,317,91],[354,4,354,17],[354,20,354,33],[354,36,354,49],[209,6,209,21],[209,29,209,44],[209,49,209,50],[335,1,335,52],[210,6,210,21],[210,29,210,44],[210,49,210,50],[211,6,211,21],[211,29,211,44],[211,49,211,50],[237,3,237,51],[372,54,374,82],[382,54,387,82],[405,54,408,82],[421,29,421,50],[423,54,425,82],[357,4,357,17],[357,20,357,33],[357,36,357,49],[426,26,426,28],[358,4,358,17],[358,20,358,33],[358,36,358,49],[359,4,359,17],[359,20,359,33],[359,36,359,49],[436,54,439,82],[474,1,474,52],[498,7,498,14],[498,22,498,29],[517,1,517,52],[568,3,569,51],[571,34,571,39],[574,3,575,51],[577,34,577,39],[566,1,566,52],[539,3,540,51],[534,3,534,51],[536,34,536,39],[599,14,599,15],[599,18,599,19],[599,22,599,25],[542,34,542,39],[555,3,556,52],[561,3,562,51],[581,3,582,51],[584,34,584,39],[587,3,588,51],[579,1,579,52],[596,44,598,50],[355,4,355,17],[355,20,355,33],[355,36,355,49],[356,4,356,17],[356,20,356,33],[590,34,590,39],[356,36,356,49],[27,17,29,51],[207,6,207,21],[207,29,207,44],[207,49,207,50],[208,6,208,21],[208,29,208,44],[208,49,208,50]]}
[]
[null,null,null,null,null,null,null,null,null,null,null,null,null,null,null,null,"DIAGNÓSTICO DE REGISTROS ADMINISTRATIVOS"]
[null,null,null,null,null,null,null,null,null,null,null,null,null,null,null,null,"FORMULARIO PARA LA CARACTERIZACIÓN DE REGISTROS ADMINISTRATIVOS"]
[null,null,null,null,null,null,null,null,null,null,null,null,null,null,null,null,"(Adaptación del Distrito sobre el Formulario para la caracterización de registros administrativos propuesto por el DANE )"]
[]
[]
[null,null,"Objetivo: recolectar información sobre las principales características del registro administrativo que son primer insumo para realizar su diagnóstico de la calidad."]
[]
[null,"IDENTIFICACIÓN DEL PRODUCTOR DEL REGISTRO ADMINISTRATIVO "]
[]
[null,null,1,"Nombre de la Entidad"]
[null,null,2,"Nombre de la dependencia"]
[null,null,3,"Nombre de la persona responsable."]
[null,null,4,"Correo institucional del responsable"]
[]
[]
[null,"IDENTIFICACIÓN DEL EQUIPO DEL DIAGNÓSTICO "]
[null,null,5,"Nombre de la Entidad que lidera el diagnóstico"]
[null,null,6,"Correo institucional del responsable del diagnóstico"]
[null,null,7,"Nombre de la dependencia"]
[null,null,8,"Nombre de la persona responsable."]
[]
[null,"IDENTIFICACIÓN DEL REGISTRO ADMINISTRATIVO"]
[]
[null,null,9,"¿Cuál es el nombre del registro administrativo? "]
[]
[]
[null,null,10,"¿Cuál es el objetivo del registro administrativo?"]
[]
[]
[]
[]
[null,null,11,"¿Cuál fue el año de creación el registro administrativo?"]
[]
[]
[null,null,12,"¿Cuál es la temática del registro administrativo?"]
[]
[null,"DISEÑO DEL REGISTRO ADMINISTRATIVO"]
[]
[null,null,13,"¿El registro administrativo cuenta con un fundamento legal que lo sustente? "]
[]
[]
[null,null,null,null,null,"¿Cuáles? ",null,null,null,null,null,null,null,null,null,null,null,null,null,null,null,null,null,null,null,null,null,null,null,null,null,null,"Enuncie entidad, nombre, número y fecha del fundamento legal elegido"]
[]
[null,null,null,null,null,"a.","Constitución Política"]
[null,null,null,null,null,"b.","Tratado Internacional"]
[null,null,null,null,null,"c.","Ley"]
[null,null,null,null,null,"d.","CONPES (Consejo Nacional de Política Económica y Social)"]
[null,null,null,null,null,"e.","Decreto (Nacional, departamental, municipal)"]
[null,null,null,null,null,"f.","Ordenanza"]
[null,null,null,null,null,"g.","Resolución"]
[null,null,null,null,null,"h.","Acuerdo"]
[null,null,null,null,null,"i.","Convenios institucionales"]
[null,null,null,null,null,"j.","Plan de Desarrollo / Ordenamiento Territorial"]
[null,null,null,null,null,"k. ","Necesidad de la entidad cumplimiento misional"]
[null,null,null,null,null,"m.","Ninguno"]
[]
[]
[null,null,14,"¿Cuáles son los principales usos del registro administrativo?"]
[]
[null,null,null,null,null,"¿Cuáles? ",null,null,null,null,null,null,null,null,null,null,null,null,null,null,null,null,null,null,null,null,null,null,null,null,"Especifique: "]
[]
[null,null,null,null,null,"a.","Formulación y ejecución de políticas públicas"]
[null,null,null,null,null,"b.","Seguimiento y evaluación de políticas públicas"]
[null,null,null,null,null,"c.","Regulación"]
[null,null,null,null,null,"d.","Control y monitoreo"]
[null,null,null,null,null,"e.","Gestión institucional"]
[null,null,null,null,null,"f.","Venta de información "]
[null,null,null,null,null,"g","Otro, ¿cuál?"]
[]
[]
[null,null,15,"¿Cuáles son los principales usuarios del registro administrativo? "]
[]
[]
[null,null,null,null,null,"¿Cuáles? ",null,null,null,null,null,null,null,null,null,null,null,null,null,null,null,null,null,"Especifique la entidad y/o dependencias"]
[]
[null,null,null,null,"a.","Entidad productora del registro"]
[null,null,null,null,"a.","Presidencia y Congreso de la República"]
[null,null,null,null,"b.","Ministerios"]
[null,null,null,null,"c.","Gobernaciones, alcaldías y entes territoriales"]
[null,null,null,null,"d.","Departamentos Administrativos "]
[null,null,null,null,"e.","Banco de la República"]
[null,null,null,null,"f.","Organismos de control"]
[null,null,null,null,"g.","Academia y centros de investigación"]
[null,null,null,null,"h.","Agremiaciones y/o Asociaciones"]
[null,null,null,null,"i.","Cámaras de Comercio"]
[null,null,null,null,"j.","Organismos internacionales"]
[null,null,null,null,"k.","Clientes y proveedores"]
[null,null,null,null,"l.","Empresas filiales"]
[null,null,null,null,"m.","Personas naturales"]
[null,null,null,null,"n.","Otro, ¿cuál?"]
[]
[]
[null,null,16,"¿El registro administrativo se ha producido de forma continua?"]
[]
[]
[]
[null,null,"16A","Si se interrumpió la producción del registro administrativo, indique los periodos ."]
[]
[]
[]
[null,null,17,"Los recursos financieros destinados para la obtención del registro administrativo son:"]
[]
[null,null,null,null,"a.","Limitados",null,null,null,null,null,null,null,null,null,null,null,null,null,null,1]
[null,null,null,null,"b.  ","Suficientes",null,null,null,null,null,null,null,null,null,null,null,null,null,null,2]
[]
[]
[null,null,18,"Los recursos humanos destinados para la obtención del registro administrativo son:"]
[]
[null,null,null,null,"a.","Limitados",null,null,null,null,null,null,null,null,null,null,null,null,null,null,1]
[null,null,null,null,"b.  ","Suficientes",null,null,null,null,null,null,null,null,null,null,null,null,null,null,2]
[]
[]
[null,null,19,"¿El registro administrativo cuenta con una población objetivo definida? "]
[]
[]
[null,null,null,"Describa las características que cumple la población objetivo para hacer parte del registro administrativo"]
[]
[]
[]
[]
[]
[]
[null,null,20,"Ha identificado todas las variables del registro administrativo? "]
[]
[]
[]
[]
[]
[null,null,null,"Anexe el listado de variables indicando las más relevantes y el diccionario de las bases de datos siguiendo el formato "]
[]
[]
[]
[null,null,21,"¿El registro administrativo tiene variables de identificación que permitan cruzarlo o integrarlo con otras bases de datos?"]
[]
[]
[]
[null,null,null,null,null,"Indique cuáles y descríbalas:"]
[]
[null,null,null,null,"Nombre de la variable:",null,null,null,null,null,null,null,null,null,null,null,null,null,null,null,null,null,"Descripción:"]
[]
[]
[]
[]
[]
[null,null,22,"¿El registro administrativo define una cobertura geográfica? "]
[]
[]
[]
[null,null,null,null,null,"¿Cuáles? "]
[null,null,null,"a.","Municipal"]
[null,null,null,"b.","UPZ"]
[null,null,null,"c.","UPR"]
[null,null,null,"d.","Localidad"]
[null,null,null,"e.","Barrio"]
[null,null,null,"Detalle el nivel de extensión territorial en la cual se realiza el levantamiento o registro de la información:"]
[]
[]
[]
[]
[]
[null,null,23,"¿Tiene identificados los niveles de desagregación geográfica del registro administrativo?"]
[]
[]
[null,null,null,null,null,null,"¿Cuáles? "]
[null,null,null,"a.","Municipal"]
[null,null,null,"b.","UPZ"]
[null,null,null,"c.","UPR"]
[null,null,null,"d.","Localidad"]
[null,null,null,"e.","Barrio"]
[null,null,null,"Detalle el nivel de división territorial en la cual se realiza la desagregación final de la información del registro:"]
[]
[]
[]
[]
[]
[]
[null,null,24,"¿Se georreferencian las unidades de observación en el registro administrativo?  (es decir, incluye un par de coordenadas)"]
[]
[]
[]
[]
[null,null,null,"Si la respuesta es \"No\", indique a partir de qué variables de localización "]
[null,null,null,"es posible georrefenciar el registro:"]
[null,null,null,"a.","Municipio"]
[null,null,null,"b.","UPZ"]
[null,null,null,"c.","UPR"]
[null,null,null,"d.","Localidad"]
[null,null,null,"e.","Barrio"]
[null,null,null,"f.","Vereda"]
[null,null,null,"g.","Dirección"]
[null,null,null,"h.","Código predial"]
[null,null,null,"i.","Otro",null,null,null,null,null,null,null,null,"¿Cuál?"]
[]
[]
[null,null,25,"¿El registro administrativo dispone de una base de datos geográfica?"]
[]
[]
[]
[null,null,null,null,null,"a.","¿Sobre qué plataforma?"]
[]
[]
[]
[]
[null,null,null,null,null,"b.","¿Qué capas geográficas maneja?",null,null,null,null,null,null,null,null,null,null,null,null,null,null,null,null,null,null,null,null,null,null,"c. ","¿Cuál es la geometría de la capa? (Punto, Línea, Polígono/ celda)"]
[]
[]
[]
[]
[]
[]
[]
[]
[null,null,null,null,null,"d. ¿Tiene vinculada la base datos geográfica con la base de datos alfa numérica?"]
[]
[]
[]
[null,null,null,null,null,null,null,"¿Cuál es la variable que sirve para vincular las bases de datos? "]
[]
[]
[null,null,26,"¿El registro administrativo cuenta con documentos técnicos?"]
[]
[]
[]
[null,null,null,null,null,null,null,null,null,null,"¿Cuáles? "]
[null,null,null,null,null,"a.","Metadato"]
[null,null,null,null,null,"b.","Ficha técnica"]
[null,null,null,null,null,"c.","Diseño de instrumentos de recolección"]
[null,null,null,null,null,"d.","Documentos de cambios en alguno de los procesos del registro administrativo "]
[null,null,null,null,null,"e. ","Manuales y/o guías para la recolección de la información. "]
[null,null,null,null,null,"f.","Diccionario de la base datos. "]
[null,null,null,null,null,"g. ","Modelo de datos."]
[null,null,null,null,null,"h.","Reglas de validación y consistencia de la base de datos. "]
[null,null,null,null,null,"i.","Otro",null,null,null,null,null,null,null,null,null,null,null,null,null,null,null,null,null,null,null,null,null,null,null,null,null,null,"¿Cuál? "]
[null,null,null,null,null,null,"(Anexe los documentos soporte)"]
[]
[]
[null,null,27,"¿El metadato está documentado bajo algún estándar nacional y/o internacional?"]
[]
[]
[]
[]
[null,null,null,null,"¿Cuál?:"]
[]
[]
[]
[null,null,28,"¿El registro administrativo utiliza conceptos definidos bajo algún estándar nacional y/o internacional?"]
[]
[]
[]
[null,null,null,null,"¿Cuáles?:"]
[]
[]
[]
[]
[]
[]
[null,null,29,"¿El registro administrativo hace uso de clasificaciones?"]
[]
[null,null,null,null,null,null,null,null,null,"Si es NO, Continúe con pregunta 32"]
[]
[null,null,null,null,null,"Qué tipo de clasificaciones utiliza:"]
[]
[null,null,null,null,null,"Económica:",null,null,null,null,null,null,null,null,"¿Cuál(es)?:"]
[]
[null,null,null,null,null,null,null,null,null,null,"a.","Clasificación Industrial Internacional Uniforme de todas las actividades económicas revisión 4 - CIIU REV. 4 A.C."]
[null,null,null,null,null,null,null,null,null,null,"b.","Clasificación Industrial Internacional Uniforme de todas las actividades económicas revisión 3.1 - CIIU REV.3.1"]
[null,null,null,null,null,null,null,null,null,null,"c.","Clasificación Central de Productos – CPC V. 1.0 A.C."]
[null,null,null,null,null,null,null,null,null,null,"d.","Clasificación Central de Productos – CPC V. 2.0 A.C."]
[null,null,null,null,null,null,null,null,null,null,"e.","Clasificación Central de Productos Agrícola, Silvícola y  Pesca – CPC ASP"]
[null,null,null,null,null,null,null,null,null,null,"f.","Clasificación por Uso o Destino Económico - CUODE"]
[null,null,null,null,null,null,null,null,null,null,"g.","Sistema Armonizado de Designación y Codificación de Mercancías - S.A."]
[null,null,null,null,null,null,null,null,null,null,"h.","Clasificación Arancelaria de la Comunidad Andina – NANDINA"]
[null,null,null,null,null,null,null,null,null,null,"i.","Clasificación Uniforme para el Comercio Internacional. Revisión 3 - CUCI"]
[null,null,null,null,null,null,null,null,null,null,"j.","Clasificación por Grandes Categorías Económicas - CGCE"]
[null,null,null,null,null,null,null,null,null,null,"k.","Arancel Externo Colombiano"]
[null,null,null,null,null,null,null,null,null,null,"l.","Clasificación de las Funciones de Consumo Individual – COICOP"]
[null,null,null,null,null,null,null,null,null,null,"m.","Clasificación de Gastos de las Industrias según su Finalidad – COPP"]
[null,null,null,null,null,null,null,null,null,null,"n.","Clasificación de las Finalidades de las Instituciones sin Fines de Lucro al Servicio de los Hogares -COPNI"]
[null,null,null,null,null,null,null,null,null,null,"o.","Clasificación de Actividades y Gastos de Protección del Medio Ambiente – CAPA"]
[null,null,null,null,null,null,null,null,null,null,"p.","Clasificación de Actividades no Financieras – CNAF"]
[null,null,null,null,null,null,null,null,null,null,"q.","Nomenclatura de Cuentas Nacionales"]
[null,null,null,null,null,null,null,null,null,null,"r.","Clasificación General de Entidades del Sector Público Colombiano – CGESPC"]
[null,null,null,null,null,null,null,null,null,null,"s.","Catálogo Único de Bienes y Servicios – CUBS. Basado en CCAOP"]
[null,null,null,null,null,null,null,null,null,null,"t.","Otra, ¿cuál?"]
[]
[null,null,null,null,null,"Social:",null,null,null,null,null,null,null,null,"¿Cuál(es)?:"]
[]
[null,null,null,null,null,null,null,null,null,null,"a.","Clasificación Internacional Uniforme de Ocupaciones – CIUO – 88 A.C"]
[null,null,null,null,null,null,null,null,null,null,"b.","Clasificación Nacional de Ocupaciones – CNO 70"]
[null,null,null,null,null,null,null,null,null,null,"c.","Clasificación Internacional de Enfermedades 10 - CIE 10"]
[null,null,null,null,null,null,null,null,null,null,"d.","Clasificación Internacional Normalizada de la Educación – CINE"]
[null,null,null,null,null,null,null,null,null,null,"e.","Clasificación Internacional Uniforme de Actividades Turísticas – CIUAT"]
[null,null,null,null,null,null,null,null,null,null,"f.","Otra, ¿cuál?"]
[]
[null,null,null,null,null,"Geográfica:",null,null,null,null,null,null,null,null,"¿Cuál(es)?:"]
[]
[null,null,null,null,null,null,null,null,null,null,"a.","División Política Administrativa - DIVIPOLA"]
[null,null,null,null,null,null,null,null,null,null,"b.","Clasificación internacional de países ISO-3166"]
[null,null,null,null,null,null,null,null,null,null,"c.","Otra, ¿cuál? "]
[]
[null,null,null,null,null,"Otra Clasificación:",null,null,null,null,null,null,1]
[]
[null,null,null,null,null,null,null,null,null,null,null,null,"¿cuál?"]
[]
[]
[]
[]
[null,null,30,"¿Se tienen definidas técnicas de recolección, obtención o captura de información para el registro administrativo?"]
[]
[]
[]
[null,null,null,null,null,"¿Cuáles? "]
[null,null,null,null,null,"a.","Autodiligenciamento"]
[null,null,null,null,null,"b.","Diligenciamiento asistido"]
[null,null,null,null,null,"c.","Entrevista personal"]
[null,null,null,null,null,"d.","Entrevista telefónica"]
[null,null,null,null,null,"e.","Observación directa"]
[null,null,null,null,null,"f.","Otra",null,null,null,null,null,null,null,null,null,null,null,"¿Cuál? "]
[]
[]
[null,null,31,"¿Se utiliza algún instrumento para realizar la recolección, obtención o captura de información?"]
[]
[]
[]
[null,null,null,null,null,null,"¿Cuáles? "]
[]
[null,null,null,null,null,"a.","Lectura electrónica"]
[null,null,null,null,null,"b.","Dispositivo móvil de captura - DMC"]
[null,null,null,null,null,"c.","Formulario vía Web"]
[null,null,null,null,null,"d.","Digitadores en un aplicativo de captura"]
[null,null,null,null,null,"e.","Digitadores en hoja de cálculo"]
[null,null,null,null,null,"f.","Otra",null,null,null,null,null,null,null,null,null,null,null,null,null,null,null,"¿Cuál? "]
[]
[]
[null,"PROCESAMIENTO DEL REGISTRO ADMINISTRATIVO"]
[null,null,32,"La recolección, obtención o captura de la información se realiza de manera: "]
[]
[null,null,null,null,"a.","Anual",null,null,null,null,null,null,null,"d.","Bimestral",null,null,null,null,null,null,null,null,"g.","Semanal",null,null,null,null,null,null,null,null,null,"i.","Otra",null,1]
[null,null,null,null,"b.","Semestral",null,null,null,null,null,null,null,"e.","Mensual",null,null,null,null,null,null,null,null,"h.","Diaria"]
[null,null,null,null,"c.","Trimestral",null,null,null,null,null,null,null,"f.","Quincenal",null,null,null,null,null,null,null,null,"i.","Permanente",null,null,null,null,null,null,null,"¿cuál?"]
[]
[]
[null,null,33,"¿La consolidación de la información del registro administrativo es? (hace referencia al cierre del periodo, ciclo o etapa de trabajo)"]
[]
[null,null,null,null,"a.","Anual",null,null,null,null,null,null,null,null,"d.","Bimestral",null,null,null,null,null,null,null,null,null,"g.","Semanal",null,null,null,null,1]
[null,null,null,null,"b.","Semestral",null,null,null,null,null,null,null,null,"e.","Mensual",null,null,null,null,null,null,null,null,null,"h.","Diaria",null,null,null,null,1]
[null,null,null,null,"c.","Trimestral",null,null,null,null,null,null,null,null,"f.","Quincenal",null,null,null,null,null,null,null,null,null,"i.","Otra",null,null,null,null,1,null,null,"¿Cuál?"]
[]
[]
[null,null,34,"¿El registro administrativo se complementa con información de otras entidades?"]
[]
[null,null,null,null,null,null,null,null,"¿Cuáles?"]
[]
[null,null,null,null,"Nombre Entidad que provee la información:",null,null,null,null,null,null,null,null,null,null,null,null,null,null,null,"Detalle la información que provee"]
[null,null,null,1]
[null,null,null,2]
[null,null,null,3]
[null,null,null,4]
[null,null,null,5]
[]
[]
[null,null,35,"¿La entidad productora da a conocer los cambios  en el proceso de generación del registro administrativo?"]
[]
[null,null,null,null,null,null,null,null,null,null,null,null,null,null,null,null,null,null,null,null,null,null,null,null,null,null,null,"Si respondió no"]
[]
[null,null,null,null,null,"A través de:",null,null,null,null,null,null,null,null,null,null,null,null,null,null,null,null,null,null,null,null,null,null,null,null,null,null,null,"¿Por qué?"]
[]
[null,null,null,null,null,"a.","Página electrónica"]
[null,null,null,null,null,"b.","Avisos de prensa"]
[null,null,null,null,null,"c.","Comunicados internos"]
[null,null,null,null,null,"d.","Comunicados externos"]
[null,null,null,null,null,"e.","Correos interinstitucionales"]
[null,null,null,null,null,"f.","Otro(s)",null,null,null,null,null,null,null,null,null,null,null,"¿Cuál(es)?"]
[]
[]
[null,null,36,"¿El registro administrativo cuenta con técnicas que permite la validación de la consistencia y completitud de la información?"]
[]
[]
[]
[null,null,null,null,null,"La técnica de validación utilizada es:"]
[]
[null,null,null,null,null,"a.","Automática"]
[null,null,null,null,null,"b.","Manual",null,null,null,null,null,null,null,null,null,null,null,null,null,null,"Continúe con pregunta 37"]
[null,null,null,null,null,"c.","Una combinación de las anteriores"]
[]
[]
[null,null,37,"¿En qué fase o momento del proceso se realizan las validaciones del registro administrativo?"]
[]
[null,null,null,null,null,"a.","En el diligenciamiento (con acompañamiento)"]
[null,null,null,null,null,"b.","En obtención de datos mediante el software de captura"]
[null,null,null,null,null,"c.","En el procesamiento de los datos"]
[null,null,null,null,null,"d.","En la crítica del formulario"]
[null,null,null,null,null,"e. ","En ninguna fase se realizan validaciones"]
[]
[]
[null,null,38,"¿Existen controles para identificar valores extremos en el registro administrativo ?"]
[]
[null,null,null,"Si",null,null,null,null,null,null,null,null,null,null,null,null,null,null,null,"No",null,null,"¿Por qué?",null,null,null,null,null,null,null,null,null,null,null,null,"No aplica"]
[]
[]
[]
[]
[null,null,39,"¿Se tienen definidas técnicas para tratar los datos inconsistentes o faltantes del registro administrativo?"]
[]
[]
[null,null,null,null,null,"¿Cuáles? "]
[]
[null,null,null,"a.","Recontacto a la fuente"]
[null,null,null,"b.","Valores por defecto"]
[null,null,null,"c.","Otro"]
[]
[null,null,null,"Si marcó la opción c, explique la técnica utilizada:"]
[]
[]
[]
[]
[]
[null,null,40,"¿Se utiliza algún software en las etapas del registro administrativo?"]
[]
[]
[null,null,null,null,null,"Cuál/cuáles de las siguientes:",null,null,null,null,null,null,null,null,null,null,null,null,null,null,null,null,null,null,null,null,null,null,null,"¿Cuál?:"]
[]
[null,null,null,null,null,"a.","Recolección, obtención o captura de información"]
[null,null,null,null,null,"b.","Procesamiento"]
[null,null,null,null,null,"c.","Análisis"]
[]
[]
[null,null,41,"¿Utiliza algún gestor de base de datos para manejar la información del registro administrativo?"]
[]
[null,null,null,null,null,null,null,null,null,null,null,null,null,null,null,null,null,null,null,null,"Si respondió no"]
[]
[null,null,null,null,null,"Indique cuáles:",null,null,null,null,null,null,null,null,null,null,null,null,null,null,"¿Por qué no utiliza un gestor de base de datos?"]
[null,null,null,null,null,"a.","Oracle"]
[null,null,null,null,null,"b.","Postgre SQL"]
[null,null,null,null,null,"c.","SQL Server"]
[null,null,null,null,null,"d.","MySQL"]
[null,null,null,null,null,"e.","Sybase"]
[null,null,null,null,null,"f.","Otro"]
[null,null,null,null,null,null,"¿Cuál?"]
[]
[]
[null,null,42,"¿Cuenta con mecanismos para garantizar la seguridad de la base de datos del registro administrativo?"]
[]
[null,null,null,null,null,null,null,null,null,null,null,null,null,null,null,null,null,null,null,"Si respondió no",null,null,null,null,"¿Por qué no cuenta con mecanismos para garantizar la seguridad de la base de datos?"]
[]
[null,null,null,null,null,"Cuál/cuáles de los siguientes:"]
[null,null,null,null,null,"a.","Uso de perfiles de usuario"]
[null,null,null,null,null,"b.","Distribución de archivos"]
[null,null,null,null,null,"c.","Archivos de Auditoria"]
[null,null,null,null,null,"d.","Aislamiento del servidor (físico/lógico)"]
[null,null,null,null,null,"e.","Otro"]
[null,null,null,null,null,null,"¿Cuál?"]
[]
[null,null,null,null,null,"Especifique los mecanismos señalados anteriormente (literales a hasta e)."]
[]
[]
[]
[]
[]
[]
[]
[null,null,43,"¿Realiza respaldo de seguridad de la base de datos del registro administrativo?"]
[]
[]
[]
[null,null,null,null,"¿Qué tipo de respaldo de seguridad realiza?"]
[]
[null,null,null,null,null,"a.","Respaldo completo"]
[null,null,null,null,null,"b.","Respaldo incremental"]
[null,null,null,null,null,"c.","Respaldo diferencial"]
[null,null,null,null,null,"d.","Otro ",null,null,null,null,null,null,null,null,null,null,null,null,null,null,null,null,"¿Cuál? "]
[]
[]
[null,"ACCESO A LA INFORMACIÓN DEL REGISTRO ADMINISTRATIVO"]
[]
[null,null,44,"¿Existen restricciones para la entrega de información del registro administrativo?"]
[]
[null,null,null,"Si",null,null,null,null,null,null,null,null,null,null,null,null,null,null,null,null,"No"]
[]
[null,null,null,null,null,"Restricciones debido a:"]
[]
[null,null,null,null,null,"a.","Mandato legal"]
[null,null,null,null,null,"b.","Acuerdos con el informante"]
[null,null,null,null,null,"c.","Políticas de la entidad "]
[null,null,null,null,null,"d.","Otra",null,null,null,null,null,null,null,null,null,null,null,null,"¿Cuál?"]
[]
[null,null,null,null,null,"Especifique las restricciones señaladas anteriormente:"]
[]
[]
[]
[]
[]
[null,null,45,"¿Los usuarios tienen distintos niveles de acceso a la información del registro administrativo?"]
[]
[]
[]
[null,null,null,null,null,null,"¿A qué niveles?"]
[null,null,null,null,null,null,null,"Usuarios internos",null,null,null,null,null,null,null,null,null,null,null,null,null,null,"Usuarios externos"]
[]
[null,null,null,null,null,"a. ","Microdatos no anonimizados",null,null,null,null,null,null,null,null,null,null,null,null,null,"a. ","Microdatos no anonimizados"]
[null,null,null,null,null,"b.","Microdatos anonimizados",null,null,null,null,null,null,null,null,null,null,null,null,null,"b.","Microdatos anonimizados"]
[null,null,null,null,null,"c.","Metadatos",null,null,null,null,null,null,null,null,null,null,null,null,null,"c.","Metadatos"]
[]
[]
[null,null,46,"¿Existen medios a través de los cuales los usuarios acceden a la información del registro administrativo?"]
[]
[]
[]
[null,null,null,null,null,null,"¿Cuáles? "]
[null,null,null,null,null,"a.","Página Web",null,null,null,null,null,null,null,null,null,null,null,null,null,null,null,"Especifique el vínculo o link"]
[null,null,null,null,null,"b.","Correo electrónico",null,null,null,null,null,null,null,null,null,null,null,null,null,null,null,"Especifique el correo electrónico"]
[null,null,null,null,null,"c.","Medio magnético"]
[null,null,null,null,null,"d.","Aplicativo Web"]
[null,null,null,null,null,"e.","FTP  (Protocolo para intercambiar archivos)"]
[null,null,null,null,null,"d.","Otro",null,null,null,null,null,null,null,null,null,null,null,null,null,null,null,"¿Cuál?"]
[]
[null,"UTILIDAD ESTADÍSTICA DEL REGISTRO ADMINISTRATIVO"]
[]
[null,null,47,"¿Ha identificado antes de iniciar el proceso de diagnóstico el principal uso estadístico que tendrá el registro administrativo? "]
[]
[]
[]
[null,null,null,null,null,null,"¿Cuál(es)? "]
[null,null,null,null,null,"a.","Construcción de un marco "]
[null,null,null,null,null,"b.","Construcción de operaciones estadísticas"]
[null,null,null,null,null,"c.","Contraste de información"]
[]
[]
[null,null,48,"¿El registro administrativo cuenta con un fundamento legal que permita su continuidad en la producción? ",null,null,null,null,null,null,null,null,null,null,null,null,null,null,null,null,null,null,null,null,null,null,null,null,null,null,null,null,null,null,null,null,null,null,null,null,null,null,null,null,null,null,null,null,null,null,null,null,null,null,null,null,"Pregunta si contesta a,b,c "]
[]
[]
[]
[]
[null,null,49,"¿Las variables que son de su interés cumplen con estándares nacionales e internacionales? Por ejemplo: DIVIPOLA, CIIU. ",null,null,null,null,null,null,null,null,null,null,null,null,null,null,null,null,null,null,null,null,null,null,null,null,null,null,null,null,null,null,null,null,null,null,null,null,null,null,null,null,null,null,null,null,null,null,null,null,null,null,null,null,"Pregunta si contesta  a, b,c "]
[]
[]
[]
[]
[null,null,50,"¿Los indicadores de completitud y de consistencia de las variables que son de su interés obtenidos en la Ficha de revisión de Base de Datos satisfacen sus necesidades de información?. Tenga en cuenta que la completitud y la consistencia de las variables debe analizarse conjuntamente para garantizar la calidad de la información.",null,null,null,null,null,null,null,null,null,null,null,null,null,null,null,null,null,null,null,null,null,null,null,null,null,null,null,null,null,null,null,null,null,null,null,null,null,null,null,null,null,null,null,null,null,null,null,null,null,null,null,null,"Pregunta si contesta  a, b,c "]
[]
[]
[]
[]
[]
[null,null,51,"¿La cobertura del registro administrativo cumple con los requerimientos que usted necesita para su producción estadística?",null,null,null,null,null,null,null,null,null,null,null,null,null,null,null,null,null,null,null,null,null,null,null,null,null,null,null,null,null,null,null,null,null,null,null,null,null,null,null,null,null,null,null,null,null,null,null,null,null,null,null,null,"Pregunta si contesta  a, b,c "]
[]
[]
[]
[]
[null,null,52,"¿La periodicidad del registro administrativo le permite satisfacer su necesidad de información?",null,null,null,null,null,null,null,null,null,null,null,null,null,null,null,null,null,null,null,null,null,null,null,null,null,null,null,null,null,null,null,null,null,null,null,null,null,null,null,null,null,null,null,null,null,null,null,null,null,null,null,null,"Pregunta si contesta  a, b,c "]
[]
[]
[]
[]
[null,null,53,"¿La población objetivo del registro administrativo coincide con la población que usted desea estudiar? Analice si se presentarán problemas de subcobertura o sobrecobertura.",null,null,null,null,null,null,null,null,null,null,null,null,null,null,null,null,null,null,null,null,null,null,null,null,null,null,null,null,null,null,null,null,null,null,null,null,null,null,null,null,null,null,null,null,null,null,null,null,null,null,null,null,"Pregunta si contesta  a, b,c "]
[]
[]
[]
[]
[]
[null,null,54,"¿Las unidades de observación (o fuentes de información) del registro administrativo  son las unidades sobre las que usted desea obtener información o le permiten construir las unidades de observación que usted necesita ?",null,null,null,null,null,null,null,null,null,null,null,null,null,null,null,null,null,null,null,null,null,null,null,null,null,null,null,null,null,null,null,null,null,null,null,null,null,null,null,null,null,null,null,null,null,null,null,null,null,null,null,null,"Pregunta si contesta  a, b,c "]
[]
[]
[]
[]
[null,"Si en la pregunta 47 respondió operación estadística (b) ó información de contraste (c), además conteste las preguntas 55 y 56"]
[]
[null,null,55,"¿Las variables de georreferenciación, temáticas, identificación y ubicación que son de su interés están contenidas en el listado de las variables del registro administrativo (diccionario de datos)? "]
[]
[]
[]
[]
[]
[null,null,56,"¿La definición de las variables de georreferenciación, temáticas, identificación y ubicación del registro administrativo concuerda con los conceptos que usted requiere en sus variables para satisfacer su necesidad de información?"]
[]
[]
[]
[]
[null,"Si en la pregunta 47 respondió marco estadístico,  además conteste las preguntas 57 y 58"]
[null,null,null,null,null,null,null,null,null,null,null,null,null,null,null,null,null,null,null,null,null,null,null,null,null,null,null,null,null,null,null,null,null,null,null,null,null,null,null,null,null,null,null,null,null,null,null,null,null,null,null,null,null,null,null,null,"Pregunta si contesta  a "]
[null,null,57," ¿Las variables de georreferenciación, identificación y ubicación que son de su interés están contenidas en el listado de las variables del registro administrativo (diccionario de datos)? "]
[]
[]
[]
[]
[]
[null,null,58,"¿La definición de las variables de identificación, georreferenciación y ubicación del registro administrativo concuerda con los conceptos que usted requiere en sus variables para satisfacer su necesidad de información?",null,null,null,null,null,null,null,null,null,null,null,null,null,null,null,null,null,null,null,null,null,null,null,null,null,null,null,null,null,null,null,null,null,null,null,null,null,null,null,null,null,null,null,null,null,null,null,null,null,null,null,null,"Pregunta si contesta  a "]
[]
[]
[]
[]
[]
[null,null,null,"Nombre de la persona que suministró la información:"]
[]
[null,null,null,"Completa"]
[null,null,null,"Incompleta"]
[]
[null,null,null,"Fecha de diligenciamiento"]
[null,null,null,null,null,null,null,null,null,null,null,null,null,null,"Día",null,null,null,"Mes",null,null,null,"Año"]

{"sheet":"Formulario RR.AA","index":1,"n_rows":600,"n_cols":37,"rows_kept":600,"cut":false,"hidden":false,"merged":[[581,2,582,50],[584,33,584,38],[587,2,588,50],[590,33,590,38],[596,43,598,49],[599,13,599,14],[599,17,599,18],[599,21,599,24],[566,0,566,51],[568,2,569,50],[571,33,571,38],[574,2,575,50],[577,33,577,38],[579,0,579,51],[534,2,534,50],[536,33,536,38],[539,2,540,50],[542,33,542,38],[555,2,556,51],[561,2,562,50],[421,28,421,49],[426,25,426,27],[474,0,474,51],[498,6,498,13],[498,21,498,28],[517,0,517,51],[358,3,358,16],[358,19,358,32],[358,35,358,48],[359,3,359,16],[359,19,359,32],[359,35,359,48],[356,3,356,16],[356,19,356,32],[356,35,356,48],[357,3,357,16],[357,19,357,32],[357,35,357,48],[354,3,354,16],[354,19,354,32],[354,35,354,48],[355,3,355,16],[355,19,355,32],[355,35,355,48],[211,5,211,20],[211,28,211,43],[211,48,211,49],[237,2,237,50],[246,32,247,50],[335,0,335,51],[209,5,209,20],[209,28,209,43],[209,48,209,49],[210,5,210,20],[210,28,210,43],[210,48,210,49],[206,48,206,49],[207,5,207,20],[207,28,207,43],[207,48,207,49],[208,5,208,20],[208,28,208,43],[208,48,208,49],[152,15,153,24],[165,14,166,23],[185,14,188,26],[205,5,205,20],[205,28,205,43],[206,5,206,20],[206,28,206,43],[140,3,140,16],[140,21,140,34],[141,3,141,16],[141,21,141,34],[142,3,142,16],[142,21,142,34],[27,16,29,50],[32,19,32,24],[35,17,35,49],[37,0,37,51],[74,22,74,50],[139,3,139,18],[139,21,139,50],[17,15,17,37],[18,34,18,46],[19,11,19,28],[20,16,20,26],[22,0,22,51],[24,17,24,50],[8,0,8,51],[10,9,10,37],[11,11,11,28],[12,16,12,26],[13,14,13,26],[16,0,16,51],[1,11,3,14],[1,15,1,50],[2,15,2,48],[3,15,3,48],[4,0,4,51],[6,1,6,50]]}
[]
[null,null,null,null,null,null,null,null,null,null,null,null,null,null,null,"DIAGNÓSTICO DE REGISTROS ADMINISTRATIVOS"]
[null,null,null,null,null,null,null,null,null,null,null,null,null,null,null,"FORMULARIO PARA LA CARACTERIZACIÓN DE REGISTROS ADMINISTRATIVOS"]
[null,null,null,null,null,null,null,null,null,null,null,null,null,null,null,"(Adaptación del Distrito sobre el Formulario para la caracterización de registros administrativos propuesto por el DANE )"]
[]
[]
[null,"Objetivo: recolectar información sobre las principales características del registro administrativo que son primer insumo para realizar su diagnóstico de la calidad."]
[]
["IDENTIFICACIÓN DEL PRODUCTOR DEL REGISTRO ADMINISTRATIVO "]
[]
[null,1,"Nombre de la Entidad"]
[null,2,"Nombre de la dependencia"]
[null,3,"Nombre de la persona responsable."]
[null,4,"Correo institucional del responsable"]
[]
[]
["IDENTIFICACIÓN DEL EQUIPO DEL DIAGNÓSTICO "]
[null,5,"Nombre de la Entidad que lidera el diagnóstico"]
[null,6,"Correo institucional del responsable del diagnóstico"]
[null,7,"Nombre de la dependencia"]
[null,8,"Nombre de la persona responsable."]
[]
["IDENTIFICACIÓN DEL REGISTRO ADMINISTRATIVO"]
[]
[null,9,"¿Cuál es el nombre del registro administrativo? "]
[]
[]
[null,10,"¿Cuál es el objetivo del registro administrativo?"]
[]
[]
[]
[]
[null,11,"¿Cuál fue el año de creación el registro administrativo?"]
[]
[]
[null,12,"¿Cuál es la temática del registro administrativo?"]
[]
["DISEÑO DEL REGISTRO ADMINISTRATIVO"]
[]
[null,13,"¿El registro administrativo cuenta con un fundamento legal que lo sustente? "]
[]
[]
[null,null,null,null,"¿Cuáles? ",null,null,null,null,null,null,null,null,null,null,null,null,null,null,null,null,null,null,null,null,null,null,null,null,null,null,"Enuncie entidad, nombre, número y fecha del fundamento legal elegido"]
[]
[null,null,null,null,"a.","Constitución Política"]
[null,null,null,null,"b.","Tratado Internacional"]
[null,null,null,null,"c.","Ley"]
[null,null,null,null,"d.","CONPES (Consejo Nacional de Política Económica y Social)"]
[null,null,null,null,"e.","Decreto (Nacional, departamental, municipal)"]
[null,null,null,null,"f.","Ordenanza"]
[null,null,null,null,"g.","Resolución"]
[null,null,null,null,"h.","Acuerdo"]
[null,null,null,null,"i.","Convenios institucionales"]
[null,null,null,null,"j.","Plan de Desarrollo / Ordenamiento Territorial"]
[null,null,null,null,"k. ","Necesidad de la entidad cumplimiento misional"]
[null,null,null,null,"m.","Ninguno"]
[]
[]
[null,14,"¿Cuáles son los principales usos del registro administrativo?"]
[]
[null,null,null,null,"¿Cuáles? ",null,null,null,null,null,null,null,null,null,null,null,null,null,null,null,null,null,null,null,null,null,null,null,null,"Especifique: "]
[]
[null,null,null,null,"a.","Formulación y ejecución de políticas públicas"]
[null,null,null,null,"b.","Seguimiento y evaluación de políticas públicas"]
[null,null,null,null,"c.","Regulación"]
[null,null,null,null,"d.","Control y monitoreo"]
[null,null,null,null,"e.","Gestión institucional"]
[null,null,null,null,"f.","Venta de información "]
[null,null,null,null,"g","Otro, ¿cuál?"]
[]
[]
[null,15,"¿Cuáles son los principales usuarios del registro administrativo? "]
[]
[]
[null,null,null,null,"¿Cuáles? ",null,null,null,null,null,null,null,null,null,null,null,null,null,null,null,null,null,"Especifique la entidad y/o dependencias"]
[]
[null,null,null,"a.","Entidad productora del registro"]
[null,null,null,"a.","Presidencia y Congreso de la República"]
[null,null,null,"b.","Ministerios"]
[null,null,null,"c.","Gobernaciones, alcaldías y entes territoriales"]
[null,null,null,"d.","Departamentos Administrativos "]
[null,null,null,"e.","Banco de la República"]
[null,null,null,"f.","Organismos de control"]
[null,null,null,"g.","Academia y centros de investigación"]
[null,null,null,"h.","Agremiaciones y/o Asociaciones"]
[null,null,null,"i.","Cámaras de Comercio"]
[null,null,null,"j.","Organismos internacionales"]
[null,null,null,"k.","Clientes y proveedores"]
[null,null,null,"l.","Empresas filiales"]
[null,null,null,"m.","Personas naturales"]
[null,null,null,"n.","Otro, ¿cuál?"]
[]
[]
[null,16,"¿El registro administrativo se ha producido de forma continua?"]
[]
[]
[]
[null,"16A","Si se interrumpió la producción del registro administrativo, indique los periodos ."]
[]
[]
[]
[null,17,"Los recursos financieros destinados para la obtención del registro administrativo son:"]
[]
[null,null,null,"a.","Limitados",null,null,null,null,null,null,null,null,null,null,null,null,null,null,1]
[null,null,null,"b.  ","Suficientes",null,null,null,null,null,null,null,null,null,null,null,null,null,null,2]
[]
[]
[null,18,"Los recursos humanos destinados para la obtención del registro administrativo son:"]
[]
[null,null,null,"a.","Limitados",null,null,null,null,null,null,null,null,null,null,null,null,null,null,1]
[null,null,null,"b.  ","Suficientes",null,null,null,null,null,null,null,null,null,null,null,null,null,null,2]
[]
[]
[null,19,"¿El registro administrativo cuenta con una población objetivo definida? "]
[]
[]
[null,null,"Describa las características que cumple la población objetivo para hacer parte del registro administrativo"]
[]
[]
[]
[]
[]
[]
[null,20,"Ha identificado todas las variables del registro administrativo? "]
[]
[]
[]
[]
[]
[null,null,"Anexe el listado de variables indicando las más relevantes y el diccionario de las bases de datos siguiendo el formato "]
[]
[]
[]
[null,21,"¿El registro administrativo tiene variables de identificación que permitan cruzarlo o integrarlo con otras bases de datos?"]
[]
[]
[]
[null,null,null,null,"Indique cuáles y descríbalas:"]
[]
[null,null,null,"Nombre de la variable:",null,null,null,null,null,null,null,null,null,null,null,null,null,null,null,null,null,"Descripción:"]
[]
[]
[]
[]
[]
[null,22,"¿El registro administrativo define una cobertura geográfica? "]
[]
[]
[]
[null,null,null,null,"¿Cuáles? "]
[null,null,"a.","Municipal"]
[null,null,"b.","UPZ"]
[null,null,"c.","UPR"]
[null,null,"d.","Localidad"]
[null,null,"e.","Barrio"]
[null,null,"Detalle el nivel de extensión territorial en la cual se realiza el levantamiento o registro de la información:"]
[]
[]
[]
[]
[]
[null,23,"¿Tiene identificados los niveles de desagregación geográfica del registro administrativo?"]
[]
[]
[null,null,null,null,null,"¿Cuáles? "]
[null,null,"a.","Municipal"]
[null,null,"b.","UPZ"]
[null,null,"c.","UPR"]
[null,null,"d.","Localidad"]
[null,null,"e.","Barrio"]
[null,null,"Detalle el nivel de división territorial en la cual se realiza la desagregación final de la información del registro:"]
[]
[]
[]
[]
[]
[]
[null,24,"¿Se georreferencian las unidades de observación en el registro administrativo?  (es decir, incluye un par de coordenadas)"]
[]
[]
[]
[]
[null,null,"Si la respuesta es \"No\", indique a partir de qué variables de localización "]
[null,null,"es posible georrefenciar el registro:"]
[null,null,"a.","Municipio"]
[null,null,"b.","UPZ"]
[null,null,"c.","UPR"]
[null,null,"d.","Localidad"]
[null,null,"e.","Barrio"]
[null,null,"f.","Vereda"]
[null,null,"g.","Dirección"]
[null,null,"h.","Código predial"]
[null,null,"i.","Otro",null,null,null,null,null,null,null,null,"¿Cuál?"]
[]
[]
[null,25,"¿El registro administrativo dispone de una base de datos geográfica?"]
[]
[]
[]
[null,null,null,null,"a.","¿Sobre qué plataforma?"]
[]
[]
[]
[]
[null,null,null,null,"b.","¿Qué capas geográficas maneja?",null,null,null,null,null,null,null,null,null,null,null,null,null,null,null,null,null,null,null,null,null,null,"c. ","¿Cuál es la geometría de la capa? (Punto, Línea, Polígono/ celda)"]
[]
[]
[]
[]
[]
[]
[]
[]
[null,null,null,null,"d. ¿Tiene vinculada la base datos geográfica con la base de datos alfa numérica?"]
[]
[]
[]
[null,null,null,null,null,null,"¿Cuál es la variable que sirve para vincular las bases de datos? "]
[]
[]
[null,26,"¿El registro administrativo cuenta con documentos técnicos?"]
[]
[]
[]
[null,null,null,null,null,null,null,null,null,"¿Cuáles? "]
[null,null,null,null,"a.","Metadato"]
[null,null,null,null,"b.","Ficha técnica"]
[null,null,null,null,"c.","Diseño de instrumentos de recolección"]
[null,null,null,null,"d.","Documentos de cambios en alguno de los procesos del registro administrativo "]
[null,null,null,null,"e. ","Manuales y/o guías para la recolección de la información. "]
[null,null,null,null,"f.","Diccionario de la base datos. "]
[null,null,null,null,"g. ","Modelo de datos."]
[null,null,null,null,"h.","Reglas de validación y consistencia de la base de datos. "]
[null,null,null,null,"i.","Otro",null,null,null,null,null,null,null,null,null,null,null,null,null,null,null,null,null,null,null,null,null,null,null,null,null,null,"¿Cuál? "]
[null,null,null,null,null,"(Anexe los documentos soporte)"]
[]
[]
[null,27,"¿El metadato está documentado bajo algún estándar nacional y/o internacional?"]
[]
[]
[]
[]
[null,null,null,"¿Cuál?:"]
[]
[]
[]
[null,28,"¿El registro administrativo utiliza conceptos definidos bajo algún estándar nacional y/o internacional?"]
[]
[]
[]
[null,null,null,"¿Cuáles?:"]
[]
[]
[]
[]
[]
[]
[null,29,"¿El registro administrativo hace uso de clasificaciones?"]
[]
[null,null,null,null,null,null,null,null,"Si es NO, Continúe con pregunta 32"]
[]
[null,null,null,null,"Qué tipo de clasificaciones utiliza:"]
[]
[null,null,null,null,"Económica:",null,null,null,null,null,null,null,null,"¿Cuál(es)?:"]
[]
[null,null,null,null,null,null,null,null,null,"a.","Clasificación Industrial Internacional Uniforme de todas las actividades económicas revisión 4 - CIIU REV. 4 A.C."]
[null,null,null,null,null,null,null,null,null,"b.","Clasificación Industrial Internacional Uniforme de todas las actividades económicas revisión 3.1 - CIIU REV.3.1"]
[null,null,null,null,null,null,null,null,null,"c.","Clasificación Central de Productos – CPC V. 1.0 A.C."]
[null,null,null,null,null,null,null,null,null,"d.","Clasificación Central de Productos – CPC V. 2.0 A.C."]
[null,null,null,null,null,null,null,null,null,"e.","Clasificación Central de Productos Agrícola, Silvícola y  Pesca – CPC ASP"]
[null,null,null,null,null,null,null,null,null,"f.","Clasificación por Uso o Destino Económico - CUODE"]
[null,null,null,null,null,null,null,null,null,"g.","Sistema Armonizado de Designación y Codificación de Mercancías - S.A."]
[null,null,null,null,null,null,null,null,null,"h.","Clasificación Arancelaria de la Comunidad Andina – NANDINA"]
[null,null,null,null,null,null,null,null,null,"i.","Clasificación Uniforme para el Comercio Internacional. Revisión 3 - CUCI"]
[null,null,null,null,null,null,null,null,null,"j.","Clasificación por Grandes Categorías Económicas - CGCE"]
[null,null,null,null,null,null,null,null,null,"k.","Arancel Externo Colombiano"]
[null,null,null,null,null,null,null,null,null,"l.","Clasificación de las Funciones de Consumo Individual – COICOP"]
[null,null,null,null,null,null,null,null,null,"m.","Clasificación de Gastos de las Industrias según su Finalidad – COPP"]
[null,null,null,null,null,null,null,null,null,"n.","Clasificación de las Finalidades de las Instituciones sin Fines de Lucro al Servicio de los Hogares -COPNI"]
[null,null,null,null,null,null,null,null,null,"o.","Clasificación de Actividades y Gastos de Protección del Medio Ambiente – CAPA"]
[null,null,null,null,null,null,null,null,null,"p.","Clasificación de Actividades no Financieras – CNAF"]
[null,null,null,null,null,null,null,null,null,"q.","Nomenclatura de Cuentas Nacionales"]
[null,null,null,null,null,null,null,null,null,"r.","Clasificación General de Entidades del Sector Público Colombiano – CGESPC"]
[null,null,null,null,null,null,null,null,null,"s.","Catálogo Único de Bienes y Servicios – CUBS. Basado en CCAOP"]
[null,null,null,null,null,null,null,null,null,"t.","Otra, ¿cuál?"]
[]
[null,null,null,null,"Social:",null,null,null,null,null,null,null,null,"¿Cuál(es)?:"]
[]
[null,null,null,null,null,null,null,null,null,"a.","Clasificación Internacional Uniforme de Ocupaciones – CIUO – 88 A.C"]
[null,null,null,null,null,null,null,null,null,"b.","Clasificación Nacional de Ocupaciones – CNO 70"]
[null,null,null,null,null,null,null,null,null,"c.","Clasificación Internacional de Enfermedades 10 - CIE 10"]
[null,null,null,null,null,null,null,null,null,"d.","Clasificación Internacional Normalizada de la Educación – CINE"]
[null,null,null,null,null,null,null,null,null,"e.","Clasificación Internacional Uniforme de Actividades Turísticas – CIUAT"]
[null,null,null,null,null,null,null,null,null,"f.","Otra, ¿cuál?"]
[]
[null,null,null,null,"Geográfica:",null,null,null,null,null,null,null,null,"¿Cuál(es)?:"]
[]
[null,null,null,null,null,null,null,null,null,"a.","División Política Administrativa - DIVIPOLA"]
[null,null,null,null,null,null,null,null,null,"b.","Clasificación internacional de países ISO-3166"]
[null,null,null,null,null,null,null,null,null,"c.","Otra, ¿cuál? "]
[]
[null,null,null,null,"Otra Clasificación:",null,null,null,null,null,null,1]
[]
[null,null,null,null,null,null,null,null,null,null,null,"¿cuál?"]
[]
[]
[]
[]
[null,30,"¿Se tienen definidas técnicas de recolección, obtención o captura de información para el registro administrativo?"]
[]
[]
[]
[null,null,null,null,"¿Cuáles? "]
[null,null,null,null,"a.","Autodiligenciamento"]
[null,null,null,null,"b.","Diligenciamiento asistido"]
[null,null,null,null,"c.","Entrevista personal"]
[null,null,null,null,"d.","Entrevista telefónica"]
[null,null,null,null,"e.","Observación directa"]
[null,null,null,null,"f.","Otra",null,null,null,null,null,null,null,null,null,null,null,"¿Cuál? "]
[]
[]
[null,31,"¿Se utiliza algún instrumento para realizar la recolección, obtención o captura de información?"]
[]
[]
[]
[null,null,null,null,null,"¿Cuáles? "]
[]
[null,null,null,null,"a.","Lectura electrónica"]
[null,null,null,null,"b.","Dispositivo móvil de captura - DMC"]
[null,null,null,null,"c.","Formulario vía Web"]
[null,null,null,null,"d.","Digitadores en un aplicativo de captura"]
[null,null,null,null,"e.","Digitadores en hoja de cálculo"]
[null,null,null,null,"f.","Otra",null,null,null,null,null,null,null,null,null,null,null,null,null,null,null,"¿Cuál? "]
[]
[]
["PROCESAMIENTO DEL REGISTRO ADMINISTRATIVO"]
[null,32,"La recolección, obtención o captura de la información se realiza de manera: "]
[]
[null,null,null,"a.","Anual",null,null,null,null,null,null,null,"d.","Bimestral",null,null,null,null,null,null,null,null,"g.","Semanal",null,null,null,null,null,null,null,null,null,"i.","Otra",null,1]
[null,null,null,"b.","Semestral",null,null,null,null,null,null,null,"e.","Mensual",null,null,null,null,null,null,null,null,"h.","Diaria"]
[null,null,null,"c.","Trimestral",null,null,null,null,null,null,null,"f.","Quincenal",null,null,null,null,null,null,null,null,"i.","Permanente",null,null,null,null,null,null,null,"¿cuál?"]
[]
[]
[null,33,"¿La consolidación de la información del registro administrativo es? (hace referencia al cierre del periodo, ciclo o etapa de trabajo)"]
[]
[null,null,null,"a.","Anual",null,null,null,null,null,null,null,null,"d.","Bimestral",null,null,null,null,null,null,null,null,null,"g.","Semanal",null,null,null,null,1]
[null,null,null,"b.","Semestral",null,null,null,null,null,null,null,null,"e.","Mensual",null,null,null,null,null,null,null,null,null,"h.","Diaria",null,null,null,null,1]
[null,null,null,"c.","Trimestral",null,null,null,null,null,null,null,null,"f.","Quincenal",null,null,null,null,null,null,null,null,null,"i.","Otra",null,null,null,null,1,null,null,"¿Cuál?"]
[]
[]
[null,34,"¿El registro administrativo se complementa con información de otras entidades?"]
[]
[null,null,null,null,null,null,null,"¿Cuáles?"]
[]
[null,null,null,"Nombre Entidad que provee la información:",null,null,null,null,null,null,null,null,null,null,null,null,null,null,null,"Detalle la información que provee"]
[null,null,1]
[null,null,2]
[null,null,3]
[null,null,4]
[null,null,5]
[]
[]
[null,35,"¿La entidad productora da a conocer los cambios  en el proceso de generación del registro administrativo?"]
[]
[null,null,null,null,null,null,null,null,null,null,null,null,null,null,null,null,null,null,null,null,null,null,null,null,null,null,"Si respondió no"]
[]
[null,null,null,null,"A través de:",null,null,null,null,null,null,null,null,null,null,null,null,null,null,null,null,null,null,null,null,null,null,null,null,null,null,null,"¿Por qué?"]
[]
[null,null,null,null,"a.","Página electrónica"]
[null,null,null,null,"b.","Avisos de prensa"]
[null,null,null,null,"c.","Comunicados internos"]
[null,null,null,null,"d.","Comunicados externos"]
[null,null,null,null,"e.","Correos interinstitucionales"]
[null,null,null,null,"f.","Otro(s)",null,null,null,null,null,null,null,null,null,null,null,"¿Cuál(es)?"]
[]
[]
[null,36,"¿El registro administrativo cuenta con técnicas que permite la validación de la consistencia y completitud de la información?"]
[]
[]
[]
[null,null,null,null,"La técnica de validación utilizada es:"]
[]
[null,null,null,null,"a.","Automática"]
[null,null,null,null,"b.","Manual",null,null,null,null,null,null,null,null,null,null,null,null,null,null,"Continúe con pregunta 37"]
[null,null,null,null,"c.","Una combinación de las anteriores"]
[]
[]
[null,37,"¿En qué fase o momento del proceso se realizan las validaciones del registro administrativo?"]
[]
[null,null,null,null,"a.","En el diligenciamiento (con acompañamiento)"]
[null,null,null,null,"b.","En obtención de datos mediante el software de captura"]
[null,null,null,null,"c.","En el procesamiento de los datos"]
[null,null,null,null,"d.","En la crítica del formulario"]
[null,null,null,null,"e. ","En ninguna fase se realizan validaciones"]
[]
[]
[null,38,"¿Existen controles para identificar valores extremos en el registro administrativo ?"]
[]
[null,null,"Si",null,null,null,null,null,null,null,null,null,null,null,null,null,null,null,"No",null,null,"¿Por qué?",null,null,null,null,null,null,null,null,null,null,null,null,"No aplica"]
[]
[]
[]
[]
[null,39,"¿Se tienen definidas técnicas para tratar los datos inconsistentes o faltantes del registro administrativo?"]
[]
[]
[null,null,null,null,"¿Cuáles? "]
[]
[null,null,"a.","Recontacto a la fuente"]
[null,null,"b.","Valores por defecto"]
[null,null,"c.","Otro"]
[]
[null,null,"Si marcó la opción c, explique la técnica utilizada:"]
[]
[]
[]
[]
[]
[null,40,"¿Se utiliza algún software en las etapas del registro administrativo?"]
[]
[]
[null,null,null,null,"Cuál/cuáles de las siguientes:",null,null,null,null,null,null,null,null,null,null,null,null,null,null,null,null,null,null,null,null,null,null,null,"¿Cuál?:"]
[]
[null,null,null,null,"a.","Recolección, obtención o captura de información"]
[null,null,null,null,"b.","Procesamiento"]
[null,null,null,null,"c.","Análisis"]
[]
[]
[null,41,"¿Utiliza algún gestor de base de datos para manejar la información del registro administrativo?"]
[]
[null,null,null,null,null,null,null,null,null,null,null,null,null,null,null,null,null,null,null,"Si respondió no"]
[]
[null,null,null,null,"Indique cuáles:",null,null,null,null,null,null,null,null,null,null,null,null,null,null,"¿Por qué no utiliza un gestor de base de datos?"]
[null,null,null,null,"a.","Oracle"]
[null,null,null,null,"b.","Postgre SQL"]
[null,null,null,null,"c.","SQL Server"]
[null,null,null,null,"d.","MySQL"]
[null,null,null,null,"e.","Sybase"]
[null,null,null,null,"f.","Otro"]
[null,null,null,null,null,"¿Cuál?"]
[]
[]
[null,42,"¿Cuenta con mecanismos para garantizar la seguridad de la base de datos del registro administrativo?"]
[]
[null,null,null,null,null,null,null,null,null,null,null,null,null,null,null,null,null,null,"Si respondió no",null,null,null,null,"¿Por qué no cuenta con mecanismos para garantizar la seguridad de la base de datos?"]
[]
[null,null,null,null,"Cuál/cuáles de los siguientes:"]
[null,null,null,null,"a.","Uso de perfiles de usuario"]
[null,null,null,null,"b.","Distribución de archivos"]
[null,null,null,null,"c.","Archivos de Auditoria"]
[null,null,null,null,"d.","Aislamiento del servidor (físico/lógico)"]
[null,null,null,null,"e.","Otro"]
[null,null,null,null,null,"¿Cuál?"]
[]
[null,null,null,null,"Especifique los mecanismos señalados anteriormente (literales a hasta e)."]
[]
[]
[]
[]
[]
[]
[]
[null,43,"¿Realiza respaldo de seguridad de la base de datos del registro administrativo?"]
[]
[]
[]
[null,null,null,"¿Qué tipo de respaldo de seguridad realiza?"]
[]
[null,null,null,null,"a.","Respaldo completo"]
[null,null,null,null,"b.","Respaldo incremental"]
[null,null,null,null,"c.","Respaldo diferencial"]
[null,null,null,null,"d.","Otro ",null,null,null,null,null,null,null,null,null,null,null,null,null,null,null,null,"¿Cuál? "]
[]
[]
["ACCESO A LA INFORMACIÓN DEL REGISTRO ADMINISTRATIVO"]
[]
[null,44,"¿Existen restricciones para la entrega de información del registro administrativo?"]
[]
[null,null,"Si",null,null,null,null,null,null,null,null,null,null,null,null,null,null,null,null,"No"]
[]
[null,null,null,null,"Restricciones debido a:"]
[]
[null,null,null,null,"a.","Mandato legal"]
[null,null,null,null,"b.","Acuerdos con el informante"]
[null,null,null,null,"c.","Políticas de la entidad "]
[null,null,null,null,"d.","Otra",null,null,null,null,null,null,null,null,null,null,null,null,"¿Cuál?"]
[]
[null,null,null,null,"Especifique las restricciones señaladas anteriormente:"]
[]
[]
[]
[]
[]
[null,45,"¿Los usuarios tienen distintos niveles de acceso a la información del registro administrativo?"]
[]
[]
[]
[null,null,null,null,null,"¿A qué niveles?"]
[null,null,null,null,null,null,"Usuarios internos",null,null,null,null,null,null,null,null,null,null,null,null,null,null,"Usuarios externos"]
[]
[null,null,null,null,"a. ","Microdatos no anonimizados",null,null,null,null,null,null,null,null,null,null,null,null,null,"a. ","Microdatos no anonimizados"]
[null,null,null,null,"b.","Microdatos anonimizados",null,null,null,null,null,null,null,null,null,null,null,null,null,"b.","Microdatos anonimizados"]
[null,null,null,null,"c.","Metadatos",null,null,null,null,null,null,null,null,null,null,null,null,null,"c.","Metadatos"]
[]
[]
[null,46,"¿Existen medios a través de los cuales los usuarios acceden a la información del registro administrativo?"]
[]
[]
[]
[null,null,null,null,null,"¿Cuáles? "]
[null,null,null,null,"a.","Página Web",null,null,null,null,null,null,null,null,null,null,null,null,null,null,null,"Especifique el vínculo o link"]
[null,null,null,null,"b.","Correo electrónico",null,null,null,null,null,null,null,null,null,null,null,null,null,null,null,"Especifique el correo electrónico"]
[null,null,null,null,"c.","Medio magnético"]
[null,null,null,null,"d.","Aplicativo Web"]
[null,null,null,null,"e.","FTP  (Protocolo para intercambiar archivos)"]
[null,null,null,null,"d.","Otro",null,null,null,null,null,null,null,null,null,null,null,null,null,null,null,"¿Cuál?"]
[]
["UTILIDAD ESTADÍSTICA DEL REGISTRO ADMINISTRATIVO"]
[]
[null,47,"¿Ha identificado antes de iniciar el proceso de diagnóstico el principal uso estadístico que tendrá el registro administrativo? "]
[]
[]
[]
[null,null,null,null,null,"¿Cuál(es)? "]
[null,null,null,null,"a.","Construcción de un marco "]
[null,null,null,null,"b.","Construcción de operaciones estadísticas"]
[null,null,null,null,"c.","Contraste de información"]
[]
[]
[null,48,"¿El registro administrativo cuenta con un fundamento legal que permita su continuidad en la producción? "]
[]
[]
[]
[]
[null,49,"¿Las variables que son de su interés cumplen con estándares nacionales e internacionales? Por ejemplo: DIVIPOLA, CIIU. "]
[]
[]
[]
[]
[null,50,"¿Los indicadores de completitud y de consistencia de las variables que son de su interés obtenidos en la Ficha de revisión de Base de Datos satisfacen sus necesidades de información?. Tenga en cuenta que la completitud y la consistencia de las variables debe analizarse conjuntamente para garantizar la calidad de la información."]
[]
[]
[]
[]
[]
[null,51,"¿La cobertura del registro administrativo cumple con los requerimientos que usted necesita para su producción estadística?"]
[]
[]
[]
[]
[null,52,"¿La periodicidad del registro administrativo le permite satisfacer su necesidad de información?"]
[]
[]
[]
[]
[null,53,"¿La población objetivo del registro administrativo coincide con la población que usted desea estudiar? Analice si se presentarán problemas de subcobertura o sobrecobertura."]
[]
[]
[]
[]
[]
[null,54,"¿Las unidades de observación (o fuentes de información) del registro administrativo  son las unidades sobre las que usted desea obtener información o le permiten construir las unidades de observación que usted necesita ?"]
[]
[]
[]
[]
["Si en la pregunta 47 respondió operación estadística (b) ó información de contraste (c), además conteste las preguntas 55 y 56"]
[]
[null,55,"¿Las variables de georreferenciación, temáticas, identificación y ubicación que son de su interés están contenidas en el listado de las variables del registro administrativo (diccionario de datos)? "]
[]
[]
[]
[]
[]
[null,56,"¿La definición de las variables de georreferenciación, temáticas, identificación y ubicación del registro administrativo concuerda con los conceptos que usted requiere en sus variables para satisfacer su necesidad de información?"]
[]
[]
[]
[]
["Si en la pregunta 47 respondió marco estadístico,  además conteste las preguntas 57 y 58"]
[]
[null,57," ¿Las variables de georreferenciación, identificación y ubicación que son de su interés están contenidas en el listado de las variables del registro administrativo (diccionario de datos)? "]
[]
[]
[]
[]
[]
[null,58,"¿La definición de las variables de identificación, georreferenciación y ubicación del registro administrativo concuerda con los conceptos que usted requiere en sus variables para satisfacer su necesidad de información?"]
[]
[]
[]
[]
[]
[null,null,"Nombre de la persona que suministró la información:"]
[]
[null,null,"Completa"]
[null,null,"Incompleta"]
[]
[null,null,"Fecha de diligenciamiento"]
[null,null,null,null,null,null,null,null,null,null,null,null,null,"Día",null,null,null,"Mes",null,null,null,"Año"]

{"sheet":"Fortalezas y Oportunidades","index":2,"n_rows":29,"n_cols":7,"rows_kept":29,"cut":false,"hidden":true,"merged":[[0,0,0,6]]}
["FORMULARIO DE CARACTERIZACIÓN DE REGISTROS ADMINISTRATIVOS"]
["No","PREGUNTA","FORTALEZA",null,"OPORTUNIDAD DE MEJORA",null,"Atributo de calidad"]
[1,"¿El registro administrativo cuenta con un fundamento legal que lo sustente? ","□ Cuenta con un fundamento legal que garantiza su continuidad ya que asegura la producción permanente del registro y facilita su aprovechamiento estadístico por parte de todas las entidades interesadas en utilizar la información.  ",{"$f":"LEN(C3)","v":231},"□ Sustente el registro administrativo en un fundamento legal \"Ley, Decretos, Resoluciones, Normas\" que garantice su continuidad o la producción permanente, ya que esto permite el aprovechamiento estadístico de la información por parte de las entidades interesadas. ",{"$f":"LEN(E3)","v":265},"Continuidad"]
[2,"¿Conoce cuáles son los principales usos del registro administrativo?","□ Identifica los principales usos de la información que produce,  esto permite que  el aprovechamiento estadistico de la información sea relevante en la toma de decisiones en la formulación y evaluación de políticas públicas,  en la producción estadística de las entidades interesadas, en la creación de directorios o marcos o en el uso de la informacion como fuente de contraste.",{"$f":"LEN(C4)","v":380},"□ Identifique los principales usos de la información que produce el registro. Esto le permitirá comprender  la relevancia de la información producida, ya que cualquier modificación podría afectar la formulación y evaluación de políticas públicas o la ejecución de alguna operación estadística.",{"$f":"LEN(E4)","v":293},"Interpretabilidad, relevancia"]
[3,"¿Conoce cuáles son los principales usuarios del registro administrativo? ","□ Identifica con claridad los usuarios de la información que produce el registro administrativo, esto le permite conocer las necesidades de información que satisface, el impacto que tiene el uso estadístico del registro y las consecuencias de interrumpir su producción.",269,"□ Identifique los principales usuarios del registro administrativo,  esto le permite conocer qué entidades se benefician con la producción, qué necesidades de información están siendo satisfechas y qué impacto tiene interrumpir la producción de la información. ",261,"Relevancia y accesibilidad"]
[4,"¿La producción del registro administrativo se ha interrumpido?","□ Se genera de forma continua garantizando el cumplimiento de su objetivo misional y la satisfacción de las necesidades de los usuarios de la información que produce. ",167,"□ Se recomienda la continuidad en la recolección de la información del registro para garantizar a los usuarios un uso adecuado y un aprovechamiento estadístico. Cada interrupción en el proceso impacta negativamente los usos del registro administrativo. \n",254,"Continuidad"]
[5,"¿El registro administrativo cuenta con una población objetivo definida? (Describa las características que cumple la población objetivo para hacer parte del registro administrativo)","□ Define la población objetivo del registro y las fuentes de información para recolectar las variables definidas. Esto permite que los usuarios del registro determinen si efectivamente la población definida es útil para el uso estadístico determinado.",251,"□ Defina de manera precisa la población objetivo del registro administrativo. Esto le permitirá determinar la fuentes de información apropiadas para reunir la información que requiere. \nLa precision en la pobalcion objetivo y la fuente de información del registro permite, a los usuarios de las demás entidades del SEN, determinar si efectivamente pueden usarlo como insumo para el análisis sobre un fenómeno de interés o para la producción de nuevas estadísticas según la necesidad.   ",486]
[6,"Es posible identificar todas las variables del registro administrativo? Anexe el listado de variables indicando las más relevantes y el diccionario de las bases de datos siguiendo el formato diseñado por el DANE","□ Las variables están identificadas y caracterizadas. Se encuentran detalladas en el diccionario de base de datos. Esto facilita que los usuarios conozcan a profundidad toda la informacion recolectada por el registro y puedan aprovecharlo estadísticamente. ",257,"□ Identifique y describa las caracteristicas de las variables que contiene el registro administrativo, por lo general, la descripción de las variables se incluye en la documentación de la base de datos, en especifico el diccionario de la base de datos. Esto le permitirá a la entidad tener claridad de toda la información que esta obteniendo   a partir del registro administrativo y aprovecharla aún más, en terminos administrativos y estadísticos.  Del mismo modo, los posibles usuarios de la información del registro pueden conocer las variables de manera detallada, esto facilita su uso y aprovechamiento estadístico. ",621,"Interpretabilidad "]
[7,"¿El registro administrativo tiene variables de identificación que permitan cruzarlo o integrarlo con otras bases de datos?","□ Cuenta con variables de identificación que permiten interoperar su información con otras bases de datos, esta integración facilita el uso estadístico, principalmente, en la conformación de marcos o directorios estadísticos. ",226,"□ Determine las variables de identificación del registro administrativo, esto le permitirá interoperar con bases de datos de otras entidades para producir nueva información estadística o realizar análisis a profundidad sobre el tema de interés.  Por su parte, los usuarios de la información producida por el registro podrán complementar su información, interoperar y definir si efectivamente el registro cuenta con las caracteristicas suficientes para ser aprovechado estadísticamente. ",486,"Comparabilidad"]
[8,"¿El registro administrativo define una cobertura geográfica? ","□ Identifica claramente la extensión territorial sobre la cual se obtiene el registro administrativo, es decir, el registro puede recolectar información a nivel nacional,  departamental, municipal, u otro. Esto permite que los usuarios tengan informacion especifica y detallada sobre el objeto de estudio y puedan aprovechar estadísticamente el registro segun su necesidad. \n\n\n ",378,"□ Defina la extensión territorial (nacional,  departamental, municipal, u otro) sobre la cual se obtiene el registro administrativo. Esto delimita el alcance del registro en terminos de información y redunda en respuestas mas efectivas a solicitudes de información por parte de los usuarios.   ",294]
[9,"¿Tiene identificados los niveles de desagregación geográfica del registro administrativo?","□ Establece el nivel de división territorial sobre el que puede generar información ( nacional, departamental, municipal, barrios o veredas). Si la información producida por el registro es desagregada a nivel Barrial o veredal se considerada de mayor provecho estadístico. ",273,"□ Determine el nivel de división territorial sobre el que registro puede generar información, esto es, a nivel nacional, departamental, municipal, barrio o vereda o para todas las mencionadas.  Esto le permitirá conocer las limitaciones en la generación de información y las técnicas para mejorar la calidad de los datos para ampliar la oferta de información en terminos de desagregación.  Si el registro logra obtener información sobre la extensión territorial más pequeña (barrio o vereda) se  considera de mayor provecho estadístico y mejoraría el análisis y descripción del fenómeno que se desea estudiar, esto es de especial interes para los usuarios de la información del registro.  ",689]
[10,"¿Se georreferencian las unidades de observación en el registro administrativo?","□ Cuenta con el posicionamiento espacial de las unidades de observación o fuentes de información lo cual es valioso,  por ejemplo: para la construcción de un marco o directorio estadístico  o para la producción de estadisticas que realicen un análisis espacial entre cada una de las unidades geográficas incluidas en el registro administrativo. ",345,"□ Posicione espacialmente las unidades de observación  o fuentes de  información del registro ya que esto facilita el aprovechamiento estadístico en la construcción de un marco o directorio estadístico  o  en la producción de estadisticas que realicen un análisis espacial entre cada una de las unidades geográficas incluidas tales como: Coordenadas, Departamento, Municipio, Sector Censal, Sección Censal, Manzana Censal, Barrio, Vereda, Dirección, Código predial, Código postal y Otros.",488]
[11,"¿El registro administrativo dispone de una base de datos geográfica?","□ Dispone de la información georreferenciada en una base de datos geográfica lo cual facilita la interoperabilidad de la información espacial de las unidades de observación o fuentes de información con todos aquellos usuarios que esten interesados en este tipo de análisis. Es de resaltar que este tipo de bases de datos deben tener una variable que vincule los datos espaciales con la base de dagtos alfanumérica debe tener diefinida una plataforma y una capa geográfica. ",473,"□ Se recomienda tener disponible la información georreferenciada en una base de datos geográfica que este soportada en un Sistema de Información Geográfica, que tenga en cuenta una capa geográfica (Punto, Línea, Polígono/ celda), y que cuente con una variable que vincule la base de datos geográfica con la base de datos original o alfanumérica.  Este tipo de base de datos facilita la interoperabilidad de la información espacial de las unidades de observación con aquellos usuarios que esten interesados en este tipo de análisis. ",532]
[12,"¿El registro administrativo cuenta con documentos técnicos?","□ Establece los documentos técnicos que describen el diseño y procesamiento del registro administrativo lo cual es una fortaleza para la accesibilidad de los usuarios a la información, la interoperabilidad y comparabilidad. ",224,"□ Elabore los documentos técnicos que describen el diseño y procesamiento del registro administrativo,  ya que esto garantiza el conocimiento por parte de la entidad de los procesos y procedimientos para la obtención de la información objeto del registro. Además, permite que los usuarios conozcan la tecnica de recolección, los conceptos y clasificaciones utilizados, la periodicidad, entre otras características importantes para el aprovechamiento estadístico de la información.",480,"Accesibilidad "]
[13,"¿El metadato está documentado bajo algún estándar nacional y/o internacional?","□ Emplea estándares nacionales o internacionales para cada uno de los documentos o metadatos que soportan el diseño y procesamiento del registro, esto permite que el registro administrativo sea interoperable e interpetable por parte de los usuarios de la información. ",268,"□ Emplee estándares nacionales o internacionales para documentar los metadatos que soportan el diseño y el procesamiento del registro administrativo. Esto permite que el registro administrativo sea interoperable e interpretable por parte de los usuarios de la información . ",274,"Interpretabilidad y comparabilidad"]
[14,"¿El registro administrativo utiliza conceptos definidos bajo algún estándar nacional y/o internacional?","□ Utiliza conceptos definidos por estándares nacionales o internacionales, lo que permite delimitar el alcance de cada una de las variables que se recolectan para que así mismo el registro sea interoperable y comparable con otros registros administrativos u operaciones estadísticas.",283,"□ Utilice conceptos estandarizados de algun referente nacional o internacional para delimitar el alcance de cada una de las variables que se recolectan, esto permite que el registro sea interoperable y comparable con otros registros administrativos u operaciones estadísticas.",276,"Coherencia, interpretabilidad y comparabilidad"]
[15,"¿El registro administrativo hace uso de clasificaciones?","□ Utiliza Clasificaciones nacionales o internacionales  para facilitar la interoperabilidad  e integración del registro administrativo con otros registros o bases de datos. ",173,"□ Implemente clasificaciones nacionales o internacionales  que permitan que la información del registro administrativo sea interoperable y facilmente integrable con algún otro registro administrativo o base de datos.  Por ejemplo: DIVIPOLA, CIIU.",246,"Coherencia, interpretabilidad y comparabilidad"]
[16,"¿Se tienen definidas técnicas de recolección, obtención o captura de información para el registro administrativo?","\n□ Define con claridad las técnicas de recolección, obtención o captura de información del registro administrativo, esto perminte que las entidades interesadas en aprovechar estadisticamente  asocien la técnica de recolección con  el nivel de respuesta obtenido en cada una de las variables, además conocer la obligatoriedad de respuesta de las fuentes de información. \n\n\n\n\n\n\n",376,"□ Defina las técnicas de recolección, obtención o captura de información del registro administrativo, estas técnicas pueden ser autodiligenciamiento, diligenciamiento asistido, entrevista personal, entrevista telefónica, observación directa, entre otros.  Esto permite que las entidades que usan el registro asocien la técnica de recolección con  el nivel de respuesta obtenido en cada una de las variables, además conocer la obligatoriedad de respuesta de las fuentes de información. \n\n\n      \n",495]
[17,"¿Se utiliza algún instrumento para realizar la recolección, obtención o captura de información?","□ Diseña el instrumento de recolección de los datos.  Precisa la estructura y la secuencia lógica de las preguntas del instrumento de recolección.  Elabora manuales y guías para la recolección de datos. Define los medios de captura de la información.       \n",258,"□ Defina un instrumento de recoleccion de información, estos pueden ser; lectura electrónica, dispositivo movil de captura -DMC-, formulario vía WEB, digitadores en un aplicativo de captura, digitadores en hoja de cálculo, otro según la fuente de información.  Precise la estructura y la secuencia lógica de las pregunstas del instrumento de recolección y elabore manuales y guías para la recolección de los datos.  Esto permitiría que la entidad recolecte la información adecuadamente y cuente con la documentación suficiente que soporta el proceso para que las entidades interesadas en utilizar los registros  puedan aprovechar estadísticamente la información producida. \n",674]
[18,"¿El registro administrativo se complementa con información de otras entidades?","□ Se complementa a partir de información producida por otros registros administrativos, además identifica las entidades que los pruducen y verifica que la información aportada contiene la calidad necesaria para complementar la información requerida por el registro.  Utilizar la información contenida en otros registros administrativos facilita que las variables que no pueden ser recolectadas se incluyan en el registro aprovehando los datos producidos por otras entidades. ",475,"□ Si el registro se complementa a partir de información producida por otras entidades, se recomienda que estas estén plenamente identificadas, se detalle y verifique la información y la calidad de la misma ya que  repercute en la generada por el registro administrativo. ",271,"Comparabilidad"]
[19,"¿La entidad productora da a conocer los cambios en el proceso de generación del registro administrativo?","□ Se dan a conocer los cambios en el proceso a los  los usuarios de la información  en los medios dispuestos para tal fin.   Esto da una imagen de transparecia y claridad  en la gestión interna de la entidad y genera confianza en los usuarios de la información; además les permitiría ajustar el uso del registro según la modificaciones,  la  pertinencia en el análisis y mejora en la toma de decisiones.  ",405,"□ Ponga en conocimiento del los usuarios los cambios generados en el proceso del registro administrativo, para esto puede utilizar la página electrónica de la entidad, avisos de prensa, comunicados internos o externos, correos interistitucionales y demás medios que la entidad disponga para avisar sobre las modificaciones realizadas al registro.  Esto da una imagen de transparecia y claridad  en la gestión interna de la entidad y genera confianza en los usuarios de la información; además les permitiría ajustar el uso del registro según la modificaciones,  la  pertinencia en el análisis y mejora en la toma de decisiones.  ",628,"Transparencia"]
[20,"¿El registro administrativo cuenta con técnicas que permite la validación de la consistencia y completitud de la información?","□ Cuenta con técnicas de validación de la consistencia y completitud de la información generada por el registro administrativo, esto permite que la entidad controle la información que esta produciendo y corrija todos los errores en las variables generados por factores externos a la recolección. Además los usuarios de la información podranconocer las técnicas aplicadas y evaluar su uso en el procesamiento de la información.  ",428,"□ Genere técnicas de validación de la consistencia y completitud de la información generada por el registro administrativo.  Estas ténicas pueden ser manuales, automáticas o una combinación de ellas, en una o varias fases del proceso del registro como por ejemplo: en el diligenciamiento del instrumento de recolección, en la optención de datos mediante el sofware de captura, en el procesamiento de los datos o en la crítica del formulario.\nEsto permite saber el grado en que los datos estan libres de contradicción y son coherentes con otros datos en un contexto de uso especifico. Indica, también, si se satisface un conjunto de restricciones especificas que establecen la relación entre diferentes elementos de los datos. Estos elementos son importantes pues impactan directamente el uso estadístico del resgistro administrativo.",833,"coherencia "]
[21,"¿Se tienen definidas técnicas para tratar los datos inconsistentes o faltantes del registro administrativo?","□ Cuenta con técnicas para tratar los datos inconsistentes o faltantes, esto permite que la información recolectada sea depurada y se eliminen todos los errores producidos en la fase de recolección, además los usuarios pueden confiar en que la información puede ser aprovechada estadísticamente. ",296,"□ Establezca, documente, e implemente técnicas para tratar los datos incosistentes o faltantes del registro administrativo y délos a conococer a los usuarios de la inforamción. Estas técnicas pueden ser recontacto a la fuente, valores por defecto, entre otros.  esto para que la información recolectada sea depurada y se eliminen todos los errores producidos en la fase de recolección, además para que los usuarios puedan aprovechar la información estadística teniendo certeza de que ha sido depurada. ",502,"coherencia "]
[22,"Se utiliza algún software en las etapas del registro administrativo","□ Utiliza algún software en las etapas de producción lo que facilita la interoperabilidad del registro con los usuarios de la información, la estandarización de variables, el uso de clasificaciones, la identifocación de inconsistencias, y  minimiza los costos en el proceso de recolección y procesamiento.    ",309,"□ Determine la infraestructura tecnológica necesaria para el registro administrativo y defina el aplicativo (software) para el desarrollo de:\n- La captura, digitación, transmisión y la consolidación de la información.\n- El almacenamiento y la lectura de las bases de datos.\n- La detección de inconsistencias, la validación, la corrección y la depuración de datos.\n- La generación de resultados, informes, cuadros de salida, gráficos y otros insumos utilizados en los análisis. \nDocumente, implemente y actualice el modelo entidad-relación, diccionario de datos, manual de validación y consistencia, manual de captura, manual del usuario, manual del sistema y los mecanismos para garantizar la seguridad, mantenimiento y respaldo de la información. \n",749]
[23,"¿Se utiliza algún gestor de base de datos para manejar la información del registro administrativo?","□ Utiliza un gestor de base de datos para manejar la información esto facilita almacenar, modificar, y acceder a la información,  realizar consultas y hacer análisis para generar informes, ayuda a la estandarización, la cosistencia, la integridad, seguridad de la base de datos. Además, los usuarios de la información  se benefician ya que pordrán utilizar las bases de datos del registro por medio de un gestor ya conocido y de facil acceso. ",443,"□ Utilice un gestor de base de datos para manejar el registro administrativo, éste puede ser: oracle, SQL Server, Postgre SQL, MySQL, sybase, entre otros. \nEsto permite gestionar datos a distintos niveles, almacenar, modificar, y acceder a la información,  realizar consultas y hacer análisis para generar informes, ayuda a la estandarización, la cosistencia, la integridad, seguridad de la base de datos. \n ",408,"Accesibilidad "]
[24,"¿Cuenta con mecanismos para garantizar la seguridad de la base de datos del registro administrativo?","□ Cuenta con mecanismos para garantizar la seguridad de la base de datos, lo cual asegura la confidencialidad de la información e identifica las restricciones de acceso por parte de usuarios dentro y fuera de la entidad.  Además, el usuario de la información recibirá las variables que pueden ser aprovechadas estadísticamente respetando la reserva estadística que tienen algunas variables  como: nombre, número de cédula, dirección, entre otros.  ",448,"□ Docuemente y genere mecanismos para  la seguridad,  mantenimiento y respaldo de la información del registro. administrativo, lo cual asegura la confidencialidad de la información e identifica las restricciones de acceso por parte de usuarios dentro y fuera de la entidad.  Además, el usuario de la información recibirá las variables que pueden ser aprovechadas estadísticamente respetando la reserva estadística que tienen algunas variables  como: nombre, número de cédula, dirección, entre otros.  \n\n",503,"Accesibilidad "]
[25,"¿Realiza respaldo de seguridad de la base de datos del registro administrativo?","□ Cuenta con un respaldo de seguridad de la base de datos (backup), lo que minimiza el riesgo de que se interrumpa el procesamiento de la información recolectada  y garantiza que exista una contingencia para cualquier error de caracter tecnológico. ",249,"□ Utilice y documente la aplicación de un mecanismo que garantice el respaldo de seguridad de la base de datos (backup) todas las actividades desarrolladas durante la consolidación de las bases de datos y los procedimientos realizados durante su procesamiento.  Esto permite que se minimice el riesgo de que se interrumpa el procesamiento de la información recolectada  y garantice que exista una contingencia para cualquier error de caracter tecnológico. ",456,"Continuidad"]
[26,"¿Los usuarios tienen distintos niveles de acceso a la información del registro administrativo?","□ Define diferentes niveles de acceso a la información producida según el tipo de usuario. Esto facilita la interoperabilidad del registro y  garantiza que la información utilizada estadísticamente respete las politicas de la entidad productora en cuanto a reserva estadítica y protección de datos. ",299,"□ Defina los niveles de acceso a la informacion del registro administrativo por parte de los usuarios tanto internos como externos, en este sentido, los niveles son con respecto a : microdatos no anonimizados, microdatos anonimizados, metadatos. Esto le permitirá tener un control de acceso a la información y las características de los usuarios, garantizando que la información utilizada estadísticamente respete las politicas de la entidad productora en cuanto a reserva estadítica y protección de datos. ",507,"Accesibilidad y transparencia "]
[27,"¿Existen medios a través de los cuales los usuarios acceden a la información del registro administrativo?","□ Dispone de medios a través de los cuales los usuarios acceden a la información lo cual satisface las necesidades los usuarios, además esto hace que la entidad sea eficiente en dar respuesta a las demandas de información por parte de los usuario.",247,"\n□ Garantice a los usuarios el acceso a la información del registro administativo a través de: página web, correo electrónico, medio magnético, aplicativo web, protocolo para intercambiar archivos u otros que la entidad considere y que satisfagan las necesidades de los usuarios de la información. La facilidad en el acceso al registro administrativo implica eficiencia en dar respuesta a las demandas de información y mayor uso del registro por parte de los usuarios. ",469,"Transparencia"]

{"sheet":"Hoja de Resultados","index":3,"n_rows":112,"n_cols":31,"rows_kept":112,"cut":false,"hidden":true,"merged":[[98,1,98,52],[104,6,104,46],[100,1,100,52],[107,1,107,52],[105,6,105,46],[101,1,101,52],[103,6,103,46],[93,1,93,52],[94,1,94,52],[95,1,95,52],[96,1,96,52],[97,1,97,52],[85,1,85,52],[89,1,89,52],[90,1,90,52],[91,1,91,52],[92,1,92,52],[86,1,86,52],[87,1,87,52],[88,1,88,52],[64,1,64,52],[65,1,65,52],[66,1,66,52],[67,1,67,52],[68,1,68,52],[59,1,59,52],[60,1,60,52],[61,1,61,52],[62,1,62,52],[63,1,63,52],[54,1,54,52],[55,1,55,52],[56,1,56,52],[57,1,57,52],[58,1,58,52],[44,1,44,52],[45,1,45,52],[46,1,46,52],[47,1,47,52],[48,1,48,52],[49,1,49,52],[50,1,50,52],[51,1,51,52],[52,1,52,52],[53,1,53,52],[35,20,35,25],[1,16,1,51],[2,16,2,49],[3,16,3,49],[4,1,4,52],[6,2,6,51],[83,1,83,52],[84,1,84,52],[8,1,8,52],[17,1,17,52],[25,1,25,52],[40,1,40,52],[80,1,80,52],[10,10,10,38],[11,15,11,27],[14,12,14,29],[15,17,15,27],[18,10,18,38],[19,15,19,27],[22,12,22,29],[23,17,23,27],[27,18,27,51],[77,1,77,52],[78,1,78,52],[79,1,79,52],[81,1,81,52],[82,1,82,52],[41,1,43,52],[38,18,38,50],[30,17,32,51],[109,2,111,13],[109,14,109,51],[110,14,110,51],[111,14,111,51],[99,1,99,52],[72,1,72,52],[73,1,73,52],[74,1,74,52],[69,1,69,52],[70,1,70,52],[71,1,71,52],[75,1,75,52],[76,1,76,52]]}
[]
[null,null,null,null,null,null,null,null,null,null,null,null,null,null,null,null,"DIRECCIÓN DE REGULACIÓN, PLANEACIÓN, ESTANDARIZACIÓN Y NORMALIZACIÓN - DIRPEN"]
[null,null,null,null,null,null,null,null,null,null,null,null,null,null,null,null,"DIAGNÓSTICO DE REGISTROS ADMINISTRATIVOS"]
[null,null,null,null,null,null,null,null,null,null,null,null,null,null,null,null,"CARACTERIZACIÓN DE REGISTROS ADMINISTRATIVOS"]
[]
[]
[null,null,"Objetivo: recolectar información sobre las principales características del registro administrativo que son primer insumo para realizar su diagnóstico de la calidad."]
[]
[null,"IDENTIFICACIÓN DEL PRODUCTOR DEL REGISTRO ADMINISTRATIVO "]
[]
[null,null,null,"Nombre de la Entidad",null,null,null,null,null,null,{"$f":"'Form. Registros'!$K$11","v":0}]
[null,null,null,"Teléfono institucional (con indicativo)",null,null,null,null,null,null,null,null,null,null,null,{"$f":"'Form. Registros'!$P$14","v":0}]
[]
[null,null,null,"Tipo de Entidad:   ",null,null,null,null,null,null,null,null,null,"Pública",null,null,1,{"$f":"'Form. Registros'!#REF!","v":{"$error":"#REF!"}},null,null,"Privada",null,null,2,{"$f":"'Form. Registros'!#REF!","v":{"$error":"#REF!"}},null,"Mixta.",null,null,3,{"$f":"'Form. Registros'!AE14","v":0}]
[null,null,null,"Nombre de la dependencia",null,null,null,null,null,null,null,null,{"$f":"'Form. Registros'!$M$12","v":0}]
[null,null,null,"Nombre de la persona responsable.",null,null,null,null,null,null,null,null,null,null,null,null,null,{"$f":"'Form. Registros'!$R$13:$AB$13","v":0}]
[]
[null,"IDENTIFICACIÓN DEL EQUIPO DEL DIAGNÓSTICO"]
[null,null,null,"Nombre de la Entidad",null,null,null,null,null,null,{"$f":"'Form. Registros'!$K$18:$AM$18","v":0}]
[null,null,null,"Teléfono institucional (con indicativo)",null,null,null,null,null,null,null,null,null,null,null,{"$f":"'Form. Registros'!$P$19:$AB$19","v":0}]
[]
[null,null,null,"Tipo de Entidad:   ",null,null,null,null,null,null,null,null,null,"Pública",null,null,1,{"$f":"'Form. Registros'!#REF!","v":{"$error":"#REF!"}},null,null,"Privada",null,null,2,{"$f":"'Form. Registros'!#REF!","v":{"$error":"#REF!"}},null,"Mixta.",null,null,3,{"$f":"'Form. Registros'!#REF!","v":{"$error":"#REF!"}}]
[null,null,null,"Nombre de la dependencia",null,null,null,null,null,null,null,null,{"$f":"'Form. Registros'!$M$20:$AD$20","v":0}]
[null,null,null,"Nombre de la persona responsable.",null,null,null,null,null,null,null,null,null,null,null,null,null,{"$f":"'Form. Registros'!$R$21:$AB$21","v":0}]
[]
[null,"IDENTIFICACIÓN DEL REGISTRO ADMINISTRATIVO"]
[]
[null,null,null,"¿Cuál es el nombre del registro administrativo? ",null,null,null,null,null,null,null,null,null,null,null,null,null,null,{"$f":"'Form. Registros'!$S$25:$AZ$25","v":0}]
[]
[]
[null,null,null,"¿Cuál es el objetivo del registro administrativo?",null,null,null,null,null,null,null,null,null,null,null,null,null,{"$f":"'Form. Registros'!$R$28:$AZ$30","v":{"$error":"#VALUE!"}}]
[]
[]
[]
[]
[null,null,null,"¿Cuál fue el año de creación el registro administrativo?",null,null,null,null,null,null,null,null,null,null,null,null,null,null,null,null,{"$f":"'Form. Registros'!$U$33:$Z$33","v":0}]
[]
[]
[null,null,null,"¿Cuál es la temática del registro administrativo?",null,null,null,null,null,null,null,null,null,null,null,null,null,null,{"$f":"'Form. Registros'!$S$36:$AY$36","v":0}]
[]
[null,"RESULTADOS DEL DIAGNÓSTICO"]
[null,{"$f":"\"Con base a la información diligenciada en el formulario de características técnicas se ha identificado que el registro administrativo \"&$S$28&\"  presenta las siguientes fortalezas y oportunidades de mejora:\"","v":"Con base a la información diligenciada en el formulario de características técnicas se ha identificado que el registro administrativo 0  presenta las siguientes fortalezas y oportunidades de mejora:"}]
[]
[]
[null,"FORTALEZAS"]
[null,{"$f":"IF('Form. Registros'!AB40=\"Si\",'Fortalezas y Oportunidades'!C3,\" \")","v":" "}]
[null,{"$f":"IF('Form. Registros'!#REF!=\"Si\",'Fortalezas y Oportunidades'!C4,\" \")","v":{"$error":"#REF!"}}]
[null,{"$f":"IF('Form. Registros'!#REF!=\"Si\",'Fortalezas y Oportunidades'!C5,\" \")","v":{"$error":"#REF!"}}]
[null,{"$f":"IF('Form. Registros'!G96=\"Si\",'Fortalezas y Oportunidades'!C6,\" \")","v":" "}]
[null,{"$f":"IF('Form. Registros'!G115=\"Si\",'Fortalezas y Oportunidades'!C7,\" \")","v":" "}]
[null,{"$f":"IF('Form. Registros'!L126=\"Si\",'Fortalezas y Oportunidades'!C8,\" \")","v":" "}]
[null,{"$f":"IF('Form. Registros'!G136=\"Si\",'Fortalezas y Oportunidades'!C9,\" \")","v":" "}]
[null,{"$f":"IF('Form. Registros'!I148=\"Si\",'Fortalezas y Oportunidades'!C10,\" \")","v":" "}]
[null,{"$f":"IF('Form. Registros'!H163=\"Si\",'Fortalezas y Oportunidades'!C11,\" \")","v":" "}]
[null,{"$f":"IF('Form. Registros'!G180=\"Si\",'Fortalezas y Oportunidades'!C12,\" \")","v":" "}]
[null,{"$f":"IF('Form. Registros'!H198=\"Si\",'Fortalezas y Oportunidades'!C13,\" \")","v":" "}]
[null,{"$f":"IF('Form. Registros'!L223=\"Si\",'Fortalezas y Oportunidades'!C14,\" \")","v":" "}]
[null,{"$f":"IF('Form. Registros'!H240=\"Si\",'Fortalezas y Oportunidades'!C15,\" \")","v":" "}]
[null,{"$f":"IF('Form. Registros'!H249=\"Si\",'Fortalezas y Oportunidades'!C16,\" \")","v":" "}]
[null,{"$f":"IF('Form. Registros'!G260=\"Si\",'Fortalezas y Oportunidades'!C17,\" \")","v":" "}]
[null,{"$f":"IF('Form. Registros'!G311=\"Si\",'Fortalezas y Oportunidades'!C18,\" \")","v":" "}]
[null,{"$f":"IF('Form. Registros'!H324=\"Si\",'Fortalezas y Oportunidades'!C19,\" \")","v":" "}]
[null,{"$f":"IF('Form. Registros'!G353=\"Si\",'Fortalezas y Oportunidades'!C20,\" \")","v":" "}]
[null,{"$f":"IF('Form. Registros'!G365=\"Si\",'Fortalezas y Oportunidades'!C21,\" \")","v":" "}]
[null,{"$f":"IF('Form. Registros'!G379=\"Si\",'Fortalezas y Oportunidades'!C22,\" \")","v":" "}]
[null,{"$f":"IF('Form. Registros'!G405=\"Si\",'Fortalezas y Oportunidades'!C23,\" \")","v":" "}]
[null,{"$f":"IF('Form. Registros'!H420=\"Si\",'Fortalezas y Oportunidades'!C24,\" \")","v":" "}]
[null,{"$f":"IF('Form. Registros'!G431=\"Si\",'Fortalezas y Oportunidades'!C25,\" \")","v":" "}]
[null,{"$f":"IF('Form. Registros'!G445=\"Si\",'Fortalezas y Oportunidades'!C26,\" \")","v":" "}]
[null,{"$f":"IF('Form. Registros'!G465=\"Si\",'Fortalezas y Oportunidades'!C27,\" \")","v":" "}]
[null,{"$f":"IF('Form. Registros'!G496=\"Si\",'Fortalezas y Oportunidades'!C28,\" \")","v":" "}]
[null,{"$f":"IF('Form. Registros'!H508=\"Si\",'Fortalezas y Oportunidades'!C29,\" \")","v":" "}]
[null,"OPORTUNIDADES DE MEJORA"]
[null,{"$f":"IF('Form. Registros'!AB40=\"No\",'Fortalezas y Oportunidades'!E3,\" \")","v":" "}]
[null,{"$f":"IF('Form. Registros'!#REF!=\"No\",'Fortalezas y Oportunidades'!E4,\" \")","v":{"$error":"#REF!"}}]
[null,{"$f":"IF('Form. Registros'!#REF!=\"No\",'Fortalezas y Oportunidades'!E5,\" \")","v":{"$error":"#REF!"}}]
[null,{"$f":"IF('Form. Registros'!G96=\"No\",'Fortalezas y Oportunidades'!E6,\" \")","v":" "}]
[null,{"$f":"IF('Form. Registros'!G115=\"No\",'Fortalezas y Oportunidades'!E7,\" \")","v":" "}]
[null,{"$f":"IF('Form. Registros'!L126=\"No\",'Fortalezas y Oportunidades'!E8,\" \")","v":" "}]
[null,{"$f":"IF('Form. Registros'!G136=\"No\",'Fortalezas y Oportunidades'!E9,\" \")","v":" "}]
[null,{"$f":"IF('Form. Registros'!G148=\"No\",'Fortalezas y Oportunidades'!E10,\" \")","v":" "}]
[null,{"$f":"IF('Form. Registros'!H163=\"No\",'Fortalezas y Oportunidades'!E11,\" \")","v":" "}]
[null,{"$f":"IF('Form. Registros'!G180=\"No\",'Fortalezas y Oportunidades'!E12,\" \")","v":" "}]
[null,{"$f":"IF('Form. Registros'!H198=\"No\",'Fortalezas y Oportunidades'!E13,\" \")","v":" "}]
[null,{"$f":"IF('Form. Registros'!L223=\"No\",'Fortalezas y Oportunidades'!E14,\" \")","v":" "}]
[null,{"$f":"IF('Form. Registros'!H240=\"No\",'Fortalezas y Oportunidades'!E15,\" \")","v":" "}]
[null,{"$f":"IF('Form. Registros'!H249=\"No\",'Fortalezas y Oportunidades'!E16,\" \")","v":" "}]
[null,{"$f":"IF('Form. Registros'!G260=\"No\",'Fortalezas y Oportunidades'!E17,\" \")","v":" "}]
[null,{"$f":"IF('Form. Registros'!G311=\"No\",'Fortalezas y Oportunidades'!E18,\" \")","v":" "}]
[null,{"$f":"IF('Form. Registros'!H324=\"No\",'Fortalezas y Oportunidades'!E19,\" \")","v":" "}]
[null,{"$f":"IF('Form. Registros'!G353=\"No\",'Fortalezas y Oportunidades'!E20,\" \")","v":" "}]
[null,{"$f":"IF('Form. Registros'!G365=\"No\",'Fortalezas y Oportunidades'!E21,\" \")","v":" "}]
[null,{"$f":"IF('Form. Registros'!G379=\"No\",'Fortalezas y Oportunidades'!E22,\" \")","v":" "}]
[null,{"$f":"IF('Form. Registros'!G405=\"No\",'Fortalezas y Oportunidades'!E23,\" \")","v":" "}]
[null,{"$f":"IF('Form. Registros'!H420=\"No\",'Fortalezas y Oportunidades'!E24,\" \")","v":" "}]
[null,{"$f":"IF('Form. Registros'!G431=\"No\",'Fortalezas y Oportunidades'!E25,\" \")","v":" "}]
[null,{"$f":"IF('Form. Registros'!G445=\"No\",'Fortalezas y Oportunidades'!E26,\" \")","v":" "}]
[null,{"$f":"IF('Form. Registros'!G465=\"No\",'Fortalezas y Oportunidades'!E27,\" \")","v":" "}]
[null,{"$f":"IF('Form. Registros'!G496=\"No\",'Fortalezas y Oportunidades'!E28,\" \")","v":" "}]
[null,{"$f":"IF('Form. Registros'!H508=\"No\",'Fortalezas y Oportunidades'!E29,\" \")","v":" "}]
[null,"UTILIDAD ESTADÍSTICA DEL REGISTRO ADMINISTRATIVO"]
[null,{"$f":"\"De acuerdo a los resultados de diagnóstico, el  registro administrativo \"&$S$28&\"  en cuanto a su utilidad es:\"","v":"De acuerdo a los resultados de diagnóstico, el  registro administrativo 0  en cuanto a su utilidad es:"}]
[]
[null,null,null,null,null,null,{"$f":"IF('Form. Registros'!$X$525=\"\",\"\",VLOOKUP('Resultados '!$M$20,'Resultados '!$A$24:$B$32,2,0))","v":""}]
[null,null,null,null,null,null,{"$f":"IF('Form. Registros'!$X$526=\"\",\"\",VLOOKUP('Resultados '!$M$21,'Resultados '!$A$24:$B$32,2,0))","v":""}]
[null,null,null,null,null,null,{"$f":"IF('Form. Registros'!$X$527=\"\",\"\",VLOOKUP('Resultados '!$M$22,'Resultados '!$A$24:$B$32,2,0))","v":""}]
[]
[null,"¿Qué tan efectivo es el registro administrativo para el uso que se le quiere dar?"]
[]
[null,null,"En cuanto a su efectividad el registro administrativo puede ser:",null,null,null,null,null,null,null,null,null,null,null,"Efectivo, cuando cumple con los minimos requeridos para ser usado estadísticamente"]
[null,null,null,null,null,null,null,null,null,null,null,null,null,null,"Parcialmente efectivo, cuando cumple con algunos aspectos que permiten su aprovechamiento, sin embargo, hay aspectos que el registro debe mejorar "]
[null,null,null,null,null,null,null,null,null,null,null,null,null,null,"No efectivo, no cumple con los mínimos establecidos para ser usado estadísticamente"]

{"sheet":"Resultados ","index":4,"n_rows":32,"n_cols":15,"rows_kept":32,"cut":false,"hidden":true,"merged":[[17,11,18,11],[17,12,18,12],[17,13,18,13],[0,0,0,9],[8,0,9,0],[11,0,12,0],[14,0,15,0],[17,0,18,0],[17,10,18,10]]}
["MATRIZ DE RESULTADOS "]
[null,null,null,null,null,null,null,null,null,null,"A",{"$f":"IF(AND('Form. Registros'!$X$525<>\"\",(AND('Form. Registros'!$X$526=\"\",'Form. Registros'!$X$527=\"\"))),5960,5152)","v":5152}]
[null,1,2,3,4,5,6,7,8,9,2,3]
["Tipo de uso",50,51,52,53,54,55,56,57,58,59,60,null,"Efectividad del uso","Descripción"]
["Marco",{"$f":"IF('Form. Registros'!$G$532=\"SI\",1,0)","v":0},{"$f":"IF($L$2=5960,\"\",IF('Form. Registros'!$G$572=\"SI\",1,IF('Form. Registros'!$G$572=\"PARCIALMENTE\",0,-1)))","v":-1},{"$f":"IF($L$2=5960,\"\",IF('Form. Registros'!$G$578=\"SI\",1,IF('Form. Registros'!$G$578=\"PARCIALMENTE\",0,-1)))","v":-1},{"$f":"IF('Form. Registros'!$G$537=\"SI\",1,IF('Form. Registros'!$G$537=\"PARCIALMENTE\",0,-1))","v":-1},{"$f":"IF('Form. Registros'!$G$543=\"SI\",1,IF('Form. Registros'!$G$543=\"PARCIALMENTE\",0,-1))","v":-1},{"$f":"IF('Form. Registros'!$G$548=\"SI\",1,0)","v":0},{"$f":"IF('Form. Registros'!$G$553=\"SI\",1,0)","v":0},{"$f":"IF('Form. Registros'!$G$559=\"SI\",1,0)","v":0},{"$f":"IF('Form. Registros'!$G$565=\"SI\",1,0)","v":0},{"$f":"IF($L$2=5152,\"\",IF('Form. Registros'!$G$585=\"SI\",1,IF('Form. Registros'!$G$585=\"PARCIALMENTE\",0,-1)))","v":""},{"$f":"IF($L$2=5152,\"\",IF('Form. Registros'!$G$591=\"SI\",1,IF('Form. Registros'!$G$591=\"PARCIALMENTE\",0,-1)))","v":""},null,"No efectivo","El registro administrativo no cumple con los mínimos deseable para ser usado como XXXXXXXXX"]
["Operación estadística",{"$f":"IF('Form. Registros'!$G$532=\"SI\",1,0)","v":0},{"$f":"IF($L$2=5960,\"\",IF('Form. Registros'!$G$572=\"SI\",1,IF('Form. Registros'!$G$572=\"PARCIALMENTE\",0,-1)))","v":-1},{"$f":"IF($L$2=5960,\"\",IF('Form. Registros'!$G$578=\"SI\",1,IF('Form. Registros'!$G$578=\"PARCIALMENTE\",0,-1)))","v":-1},{"$f":"IF('Form. Registros'!$G$537=\"SI\",1,IF('Form. Registros'!$G$537=\"PARCIALMENTE\",0,-1))","v":-1},{"$f":"IF('Form. Registros'!$G$543=\"SI\",1,IF('Form. Registros'!$G$543=\"PARCIALMENTE\",0,-1))","v":-1},{"$f":"IF('Form. Registros'!$G$548=\"SI\",1,0)","v":0},{"$f":"IF('Form. Registros'!$G$553=\"SI\",1,0)","v":0},{"$f":"IF('Form. Registros'!$G$559=\"SI\",1,0)","v":0},{"$f":"IF('Form. Registros'!$G$565=\"SI\",1,0)","v":0},{"$f":"IF($L$2=5152,\"\",IF('Form. Registros'!$G$585=\"SI\",1,IF('Form. Registros'!$G$585=\"PARCIALMENTE\",0,-1)))","v":""},{"$f":"IF($L$2=5152,\"\",IF('Form. Registros'!$G$591=\"SI\",1,IF('Form. Registros'!$G$591=\"PARCIALMENTE\",0,-1)))","v":""},null,"Parcialmente efectivo","El registro administrativo cumple con algunos aspectos que permiten su aprovechamiento para XXXXXXXX, sin embargo, hay aspectos que el registro debe mejorar para un uso efectivo."]
["Contraste",{"$f":"IF('Form. Registros'!$G$532=\"SI\",1,0)","v":0},{"$f":"IF($L$2=5960,\"\",IF('Form. Registros'!$G$572=\"SI\",1,IF('Form. Registros'!$G$572=\"PARCIALMENTE\",0,-1)))","v":-1},{"$f":"IF($L$2=5960,\"\",IF('Form. Registros'!$G$578=\"SI\",1,IF('Form. Registros'!$G$578=\"PARCIALMENTE\",0,-1)))","v":-1},{"$f":"IF('Form. Registros'!$G$537=\"SI\",1,IF('Form. Registros'!$G$537=\"PARCIALMENTE\",0,-1))","v":-1},{"$f":"IF('Form. Registros'!$G$543=\"SI\",1,IF('Form. Registros'!$G$543=\"PARCIALMENTE\",0,-1))","v":-1},{"$f":"IF('Form. Registros'!$G$548=\"SI\",1,0)","v":0},{"$f":"IF('Form. Registros'!$G$553=\"SI\",1,0)","v":0},{"$f":"IF('Form. Registros'!$G$559=\"SI\",1,0)","v":0},{"$f":"IF('Form. Registros'!$G$565=\"SI\",1,0)","v":0},{"$f":"IF($L$2=5152,\"\",IF('Form. Registros'!$G$585=\"SI\",1,IF('Form. Registros'!$G$585=\"PARCIALMENTE\",0,-1)))","v":""},{"$f":"IF($L$2=5152,\"\",IF('Form. Registros'!$G$591=\"SI\",1,IF('Form. Registros'!$G$591=\"PARCIALMENTE\",0,-1)))","v":""},null,"Efectivo","El registro administrativo cumple con todos los mínimos para ser usado estadíticamente para XXXXXXX"]
[]
["Marco debe cumplir con:",1,2,3,6,8,9," Efectivo",null,{"$f":"$B$9&$C$9&$D$9&$E$9&$F$9&$G$9","v":"123689"},null,null,null,"Escalas "]
[null,1,2,3,9,null,null,"Parcialmente efectivo",null,{"$f":"$B$10&$C$10&$D$10&$E$10","v":"1239"},null,null,null,"Cumple",1]
[null,null,null,null,null,null,null,null,null,null,null,null,null,"Parcialmente",0]
["Operación estadística:",1,3,5,6,7,9,"Efectivo",null,{"$f":"$B$12&$C$12&$D$12&$E$12&$F$12&$G$12","v":"135679"},null,null,null,"No cumple",-1]
[null,1,3,5,9,null,null,"Parcialmente efectivo",null,{"$f":"$B$13&$C$13&$D$13&$E$13","v":"1359"}]
[]
["Contraste:",1,3,6,7,9,null,"Efectivo",null,{"$f":"$B$15&$C$15&$D$15&$E$15&$F$15","v":"13679"}]
[null,1,3,6,7,9,null,"Parcialmente efectivo",null,{"$f":"$B$16&$C$16&$D$16&$E$16&$F$16","v":"13679"}]
[]
["FORMULARIO",1,2,3,4,5,6,7,8,9,"Efectivo"," Parcialmente Efectivo","Resultado"]
[null,50,"51/59","52/60",53,54,55,56,57,58]
["Marco ",{"$f":"IF($B$5=1,1,\"\")","v":""},{"$f":"IF(OR($C$5=1,$K$5=1),2,\"\")","v":""},{"$f":"IF(OR($D$5=1,$L$5=1),3,\"\")","v":""},{"$f":"IF($E$5=1,4,\"\")","v":""},{"$f":"IF($F$5=1,5,\"\")","v":""},{"$f":"IF($G$5=1,6,\"\")","v":""},{"$f":"IF($H$5=1,7,\"\")","v":""},{"$f":"IF($I$5=1,8,\"\")","v":""},{"$f":"IF($J$5=1,9,\"\")","v":""},{"$f":"$B$20&$C$20&$D$20&$G$20&$I$20&$J$20","v":""},{"$f":"$B$20&$C$20&$D$20&$J$20","v":""},{"$f":"IF($K$20=$J$9,$N$7&$A$5,IF($L$20=$J$10,$N$6&$A$5,$N$5&$A$5))","v":"No efectivoMarco"}]
["Operación estadística",{"$f":"IF($B$6=1,1,\"\")","v":""},{"$f":"IF(OR($C$6=1,$K$6=1),2,\"\")","v":""},{"$f":"IF(OR($D$6=1,$L$6=1),3,\"\")","v":""},{"$f":"IF($E$6=1,4,\"\")","v":""},{"$f":"IF($F$6=1,5,\"\")","v":""},{"$f":"IF($G$6=1,6,\"\")","v":""},{"$f":"IF($H$6=1,7,\"\")","v":""},{"$f":"IF($I$6=1,8,\"\")","v":""},{"$f":"IF($J$6=1,9,\"\")","v":""},{"$f":"$B$21&$D$21&$F$21&$G$21&$H$21&$J$21","v":""},{"$f":"$B$21&$D$21&$F$21&$J$21","v":""},{"$f":"IF($K$21=$J$12,$N$7&$A$6,IF($L$21=$J$13,$N$6&$A$6,$N$5&$A$6))","v":"No efectivoOperación estadística"}]
["Contraste de información",{"$f":"IF($B$7=1,1,\"\")","v":""},{"$f":"IF(OR($C$7=1,$K$7=1),2,\"\")","v":""},{"$f":"IF(OR($D$7=1,$L$7=1),3,\"\")","v":""},{"$f":"IF($E$7=1,4,\"\")","v":""},{"$f":"IF($F$7=1,5,\"\")","v":""},{"$f":"IF($G$7=1,6,\"\")","v":""},{"$f":"IF($H$7=1,7,\"\")","v":""},{"$f":"IF($I$7=1,8,\"\")","v":""},{"$f":"IF($J$7=1,9,\"\")","v":""},{"$f":"$B$22&$D$22&$G$22&$H$22&$J$22","v":""},null,{"$f":"IF($K$22=$J$15,$N$7&$A$7,$N$5&$A$7)","v":"No efectivoContraste"}]
[]
["Efectividad del uso","Descripción"]
["No efectivoMarco",{"$f":"\"Es no efectivo para ser usado como \"&$A$20&\"\"","v":"Es no efectivo para ser usado como Marco "}]
["No efectivoOperación estadística",{"$f":"\"Es no efectivo para ser usado como \"&$A$21&\"\"","v":"Es no efectivo para ser usado como Operación estadística"}]
["No efectivoContraste",{"$f":"\"Es no efectivo para ser usado como \"&$A$22&\"\"","v":"Es no efectivo para ser usado como Contraste de información"}]
["Parcialmente efectivoMarco",{"$f":"\"Es parcialmente efectivo para ser usado como \"&$A$20&\"\"","v":"Es parcialmente efectivo para ser usado como Marco "}]
["Parcialmente efectivoOperación estadística",{"$f":"\"Es parcialmente efectivo para ser usado como \"&$A$21&\"\"","v":"Es parcialmente efectivo para ser usado como Operación estadística"}]
["EfectivoMarco",{"$f":"\"Es efectivo para ser usado estadísticamente como \"&$A$20&\"\"","v":"Es efectivo para ser usado estadísticamente como Marco "}]
["EfectivoOperación estadística",{"$f":"\"Es efectivo para ser usado estadísticamente como \"&$A$21&\"\"","v":"Es efectivo para ser usado estadísticamente como Operación estadística"}]
["EfectivoContraste",{"$f":"\"Es efectivo para ser usado estadísticamente como \"&$A$22&\"\"","v":"Es efectivo para ser usado estadísticamente como Contraste de información"}]